Cogmind - Beta 15 @@@ ROGUE MODE // 2025.06.12 @ 23:21:41 // Winter2019/RPGLIKE Player: Jack Result: Destroyed by G-73 Enforcer with Phase Gun Performance ------------- Evolutions (9) 4500 Regions Visited (34) 6800 Robots Destroyed (512) 2560 Value Destroyed (27918) 27918 Prototype IDs (226) 4520 Alien Tech Used (2) 400 Bonus (11604) 11604 TOTAL SCORE: 58302 Bonus ------- Triggered High Security 500 High Alert Combat Kills 5796 Follower Combat Kills 1226 Network Hubs Disabled 400 Met Data Miner 300 Used Data Conduit 3000 Met Imprinter 300 Was Imprinted 300 Met Warlord at Base 500 MAIN.C Attacked Warlord 500 Warlord Defense Kills 134 Built Enhanced Grunts 300 A7 Reached Mainframe 300 Scanned by Researcher 500 Pursued by Intercept 1500 Friendly Fire -3952 Cogmind --------- Core Integrity 0/1500 Matter 288/300 Energy 30/800 System Corruption 26% Temperature Cool (94) Movement Hovering (115) Ox1 Location -1/Command Parts ------- > --- POWER (1) -------- Zionite Light DM Reactor (fused) > --- PROPULSION (5) --- Improved Hover Unit Improved Antigrav System Improved Gyrokinetic Inverter Combat Linear Gravjet > --- UTILITY (11) ----- Zionite Biocell Weight Redist. System Microactuators Nanoactuators Advanced Actuator Array Advanced Actuator Array SHELL Armor Graphene Brace Advanced Force Field > --- WEAPON (5) ------- Advanced Datajack Kinetic Spear Kinetic Spear Kinetic Spear Kinetic Spear > --- INVENTORY (7) ---- Zionite Glidesys I Dynamic Insulation System Transdimensional Reconstructor Molecular Deconstructor Peak State ------------ > --- POWER ------------ Zionite Light DM Reactor > --- PROPULSION ------- Zionite Glidesys I Zionite Glidesys I Zionite Glidesys I Improved Antigrav System Improved Gyrokinetic Inverter > --- UTILITY ---------- Zionite Biocell Weight Redist. System Microactuators Nanoactuators Advanced Actuator Array Advanced Actuator Array SHELL Armor Graphene Brace Advanced Force Field > --- WEAPON ----------- Sigix Terminator Advanced Datajack Kinetic Spear Kinetic Spear > --- INVENTORY -------- Protomatter Dynamic Insulation System Transdimensional Reconstructor Molecular Deconstructor Kinetic Spear Kinetic Spear [Rating: 172] Favorites ----------- Power Zionite Light DM Reactor Engine Light Ion Engine Power Core Light Nuclear Core Reactor Zionite Light DM Reactor Propulsion Zionite Glidesys I Hover Unit Zionite Glidesys I Utility Microactuators Device Microactuators Storage Zionite Biocell Protection Light Regenerative Plating Weapon Kinetic Spear Energy Gun EM Pulse Gun Ballistic Gun Minigun Launcher Sigix Terminator Special Weapon Molecular Deconstructor Slashing Weapon Makeshift Sword Piercing Weapon Kinetic Spear Special Melee Weapon Advanced Datajack Build | -11 -10 -9 -9 -8 -7 -7 -7 -7 -7 -7 -7 -6 -6 -6 -6 -6 -5 -5 -5 -5 -5 -5 -4 -4 -4 -4 -3 -3 -3 -2 -2 -2 -1 -1 ------- Run | Yrd Mat Mat Min Mat Fac Was Fac Low Low Zio Dee Pro Fac Low Low Dat Pro Fac Ext Cet Arc Hub Fac Upp Upp War Pro Res Tes Res Qua Sec Acc Com Slots Evolved 18 | 4 . . . . . . 2 . . . 2 . 4 . . . . 3 . . . . . . . . . 1 1 . . 1 . . Power . | . . . . . . . . . . . . . . . . . . . . . . . . . . . . . . . . . . . Propulsion 4 | 1 . . . . . . . . . . 2 . . . . . . . . . . . . . . . . . 1 . . . . . Utility 10 | . . . . . . . 2 . . . . . 4 . . . . 3 . . . . . . . . . 1 . . . . . . Weapon 4 | 3 . . . . . . . . . . . . . . . . . . . . . . . . . . . . . . . 1 . . Parts Attached 68 | 3 . 8 . 1 1 . 7 . . 5 7 . 6 1 2 . . 10 . . 1 . 3 . 1 . . 2 4 . 1 1 . 4 Power 4 | . . 1 . 1 . . 1 . . . 1 . . . . . . . . . . . . . . . . . . . . . . . Engine 1 | . . 1 . . . . . . . . . . . . . . . . . . . . . . . . . . . . . . . . Core 2 | . . . . 1 . . 1 . . . . . . . . . . . . . . . . . . . . . . . . . . . Reactor 1 | . . . . . . . . . . . 1 . . . . . . . . . . . . . . . . . . . . . . . Propulsion 16 | . . 2 . . 1 . . . . . 5 . . . . . . 1 . . . . 1 . . . . . 1 . 1 1 . 3 Treads . | . . . . . . . . . . . . . . . . . . . . . . . . . . . . . . . . . . . Leg . | . . . . . . . . . . . . . . . . . . . . . . . . . . . . . . . . . . . Wheel . | . . . . . . . . . . . . . . . . . . . . . . . . . . . . . . . . . . . Hover 16 | . . 2 . . 1 . . . . . 5 . . . . . . 1 . . . . 1 . . . . . 1 . 1 1 . 3 Flight . | . . . . . . . . . . . . . . . . . . . . . . . . . . . . . . . . . . . Utility 22 | . . . . . . . 3 . . . 1 . 6 . 1 . . 3 . . 1 . 2 . 1 . . 1 3 . . . . . Device 17 | . . . . . . . 3 . . . . . 6 . 1 . . . . . 1 . 2 . 1 . . 1 2 . . . . . Storage 1 | . . . . . . . . . . . 1 . . . . . . . . . . . . . . . . . . . . . . . Processor . | . . . . . . . . . . . . . . . . . . . . . . . . . . . . . . . . . . . Hackware . | . . . . . . . . . . . . . . . . . . . . . . . . . . . . . . . . . . . Protection 4 | . . . . . . . . . . . . . . . . . . 3 . . . . . . . . . . 1 . . . . . Artifact . | . . . . . . . . . . . . . . . . . . . . . . . . . . . . . . . . . . . Weapon 26 | 3 . 5 . . . . 3 . . 5 . . . 1 1 . . 6 . . . . . . . . . 1 . . . . . 1 Energy Gun 4 | 3 . . . . . . . . . 1 . . . . . . . . . . . . . . . . . . . . . . . . Energy Cannon . | . . . . . . . . . . . . . . . . . . . . . . . . . . . . . . . . . . . Ballistic Gun 5 | . . 5 . . . . . . . . . . . . . . . . . . . . . . . . . . . . . . . . Ballistic Cannon . | . . . . . . . . . . . . . . . . . . . . . . . . . . . . . . . . . . . Launcher 1 | . . . . . . . . . . . . . . . . . . . . . . . . . . . . . . . . . . 1 Special Weapon 1 | . . . . . . . . . . . . . . 1 . . . . . . . . . . . . . . . . . . . . Impact Weapon . | . . . . . . . . . . . . . . . . . . . . . . . . . . . . . . . . . . . Slashing Weapon 7 | . . . . . . . 3 . . 3 . . . . 1 . . . . . . . . . . . . . . . . . . . Piercing Weapon 7 | . . . . . . . . . . 1 . . . . . . . 6 . . . . . . . . . . . . . . . . Special Melee Weapon 1 | . . . . . . . . . . . . . . . . . . . . . . . . . . . . 1 . . . . . . Unidentified Prototypes 10 | . . . . . 1 . . . . 1 3 . . 1 1 . . . . . . . . . . . . . 1 . 1 . . 1 Parts Lost 6 | . . . . . 1 . . . . . 1 . . . . . . 1 . . . . . . . . . . . . . . 1 2 Power . | . . . . . . . . . . . . . . . . . . . . . . . . . . . . . . . . . . . Propulsion 6 | . . . . . 1 . . . . . 1 . . . . . . 1 . . . . . . . . . . . . . . 1 2 Utility . | . . . . . . . . . . . . . . . . . . . . . . . . . . . . . . . . . . . Weapon . | . . . . . . . . . . . . . . . . . . . . . . . . . . . . . . . . . . . Highest Loss Streak 1 | . . . . . 1 . . . . . 1 . . . . . . 1 . . . . . . . . . . . . . . 1 1 To Critical Strikes . | . . . . . . . . . . . . . . . . . . . . . . . . . . . . . . . . . . . Average Backups 1 | . . . . . . . . . . . . 1 1 1 1 2 1 1 1 1 1 1 1 3 3 3 3 2 2 3 3 3 3 3 Power . | . . . . . . . . . . . . . . . . . . . . . . . . . . . . . . . . . . . Propulsion . | . . . . . . . . . . . . . . . . . . . . . . . . . . . . . . . . . . . Utility . | . . . . . . . . . . . . 1 . . . 1 . . . . . . . 1 1 1 1 . . 1 1 1 1 1 Weapon . | . . . . . . . . . . . . . 1 1 1 1 1 1 1 1 1 1 1 1 1 1 1 1 1 1 1 2 1 1 Tool/Special . | . . . . . . . . . . . . . . . . . . . . . . . . . . . . . . . . . . . Unused Backups 3 | . . . . . . . . . . 1 . . . . . . . . . . . . . . . . . . . . . . . 2 Power . | . . . . . . . . . . . . . . . . . . . . . . . . . . . . . . . . . . . Propulsion . | . . . . . . . . . . . . . . . . . . . . . . . . . . . . . . . . . . . Utility 2 | . . . . . . . . . . 1 . . . . . . . . . . . . . . . . . . . . . . . 1 Weapon . | . . . . . . . . . . . . . . . . . . . . . . . . . . . . . . . . . . . Tool/Special 1 | . . . . . . . . . . . . . . . . . . . . . . . . . . . . . . . . . . 1 Average Slot Usage (%) 92 | . 37 70 87 87 87 87 82 88 80 84 89 91 98 99 87 91 100 94 99 100 100 100 99 100 100 100 100 100 97 90 89 90 88 88 Core 1 | . . . . . 12 12 11 10 10 10 4 . . . . . . . . . . . . . . . . . . . . . . . Reactor 4 | . . . . . . . . . . . 4 8 6 6 6 6 6 5 5 5 5 5 5 5 5 5 5 5 4 4 4 4 4 4 Hover 22 | . . 17 25 25 25 25 23 20 20 20 25 33 26 25 25 25 25 22 21 21 21 21 21 21 21 21 21 20 21 23 22 22 20 20 Device 27 | . . . . . . . 9 28 20 20 18 16 29 37 25 29 37 33 31 31 31 31 31 31 31 31 31 34 33 33 33 31 31 31 Storage 3 | . . . . . . . . . . . . . 5 6 6 6 6 5 5 5 5 5 5 5 5 5 5 5 4 4 4 4 4 4 Protection 5 | . . . . . . . . . . . . . . . . . . 5 14 15 14 15 15 15 15 15 15 15 11 4 4 4 4 4 Ballistic Gun 3 | . . 40 50 50 50 50 22 . . . . . . . . . . . . . . . . . . . . . . . . . . . Slashing Weapon 10 | . . . . . . . 15 30 30 29 27 25 20 17 23 25 25 5 . . . . . . . . . . . . . . . . Piercing Weapon 11 | . . . . . . . . . . 5 9 8 6 5 . . . 16 20 21 21 21 20 21 21 21 21 19 19 19 19 18 17 17 Peak Build Rating 172 | 3 3 19 19 21 23 23 33 33 29 43 56 58 87 96 100 100 87 117 120 117 117 117 125 125 128 128 128 133 151 148 150 158 160 172 Average Rating 95 | 1 2 15 19 19 21 23 24 32 29 32 44 57 77 87 98 93 86 102 116 117 116 117 118 125 125 128 128 132 138 148 149 157 156 155 On Entrance 83 | . 3 3 19 19 21 23 23 33 29 29 35 56 58 87 87 100 86 87 116 117 117 117 117 125 125 128 128 128 133 148 148 150 158 152 Naked Turns 1 | . 1 . . . . . . . . . . . . . . . . . . . . . . . . . . . . . . . . . Heaviest Build 99 | 5 5 15 15 17 17 17 21 20 16 29 23 23 47 49 51 51 47 58 60 58 58 58 58 56 64 64 64 67 85 82 82 83 83 99 Greatest Support 90 | 8 8 21 21 21 21 21 21 21 21 21 61 61 61 61 61 61 61 61 61 61 61 61 64 64 69 69 69 69 86 86 89 89 89 90 Greatest Overweight (x) 1 | . . 1 . . 1 . . . . 1 . . . . . . . 1 1 . . . . . . . . 1 1 . 1 . 1 1 Average Overweight (x) . | . . . . . . . . . . . . . . . . . . . . . . . . . . . . . . . . . . . Largest Inventory Capacity 7 | . . . . . . . . 1 1 3 3 5 5 5 5 5 5 5 5 5 5 5 5 6 6 6 6 6 6 6 6 6 6 7 Average Capacity 4 | . . . . . . . . . 1 1 3 4 5 5 5 5 5 5 5 5 5 5 5 5 6 6 6 6 6 6 6 6 6 6 Most Carried 7 | . . . . . . . . 1 1 3 3 5 5 5 5 5 5 5 5 5 5 5 5 6 6 6 6 6 6 6 6 6 6 7 Average Carried 4 | . . . . . . . . . . 1 2 4 4 4 3 4 4 4 3 5 4 5 3 5 5 6 5 5 5 5 5 5 5 5 Final Capacity 7 | . . . . . . . . 1 1 3 3 5 5 5 5 5 5 5 5 5 5 5 5 6 6 6 6 6 6 6 6 6 6 7 Final Carried 6 | . . . . . . . . 1 1 3 3 5 5 5 5 3 5 2 5 5 5 5 5 6 6 6 6 6 6 6 6 6 6 5 Class Distribution -------------------- 60% | Hacker-Gladiator 26% | Machinist-Gladiator 5% | Hacker-Gunner Dominant Class ---------------- Gunner | -10/Materials Gunner | -9/Materials Hacker-Gunner | -9/Mines Hacker-Gunner | -8/Materials Hacker-Gunner | -7/Factory Hacker-Gunner | -7/Waste Hacker-Gladiator | -7/Factory Hacker-Gladiator | -7/Lower Caves Hacker-Gladiator | -7/Lower Caves Hacker-Gladiator | -7/Zion Hacker-Gladiator | -7/Deep Caves Hacker-Gladiator | -6/Proximity Caves Hacker-Gladiator | -6/Factory Hacker-Gladiator | -6/Lower Caves Hacker-Gladiator | -6/Lower Caves Hacker-Gladiator | -6/Data Miner Hacker-Gladiator | -5/Proximity Caves Hacker-Gladiator | -5/Factory Machinist-Gladiator | -5/Extension Commander-Gladiator | -5/Cetus Commander-Gladiator | -5/Archives Machinist-Gladiator | -5/Hub_04(d) Machinist-Gladiator | -4/Factory Machinist-Gladiator | -4/Upper Caves Machinist-Gladiator | -4/Upper Caves Machinist-Gladiator | -4/Warlord Machinist-Gladiator | -3/Proximity Caves Machinist-Gladiator | -3/Research Machinist-Gladiator | -3/Testing Hacker-Gladiator | -2/Research Hacker-Gladiator | -2/Quarantine Hacker-Gladiator | -2/Section 7 Hacker-Gladiator | -1/Access Hacker-Gladiator | -1/Command Resources | -11 -10 -9 -9 -8 -7 -7 -7 -7 -7 -7 -7 -6 -6 -6 -6 -6 -5 -5 -5 -5 -5 -5 -4 -4 -4 -4 -3 -3 -3 -2 -2 -2 -1 -1 ----------- Run | Yrd Mat Mat Min Mat Fac Was Fac Low Low Zio Dee Pro Fac Low Low Dat Pro Fac Ext Cet Arc Hub Fac Upp Upp War Pro Res Tes Res Qua Sec Acc Com Matter Collected 5411 | 161 99 510 48 274 159 . 667 50 . 80 35 30 75 60 1778 298 71 96 185 4 19 20 122 19 45 10 . 30 189 . 15 60 50 152 Remotely . | . . . . . . . . . . . . . . . . . . . . . . . . . . . . . . . . . . . Salvage Created 25398 | . 68 345 153 455 161 . 894 784 112 86 409 512 1250 791 599 261 126 3179 1220 . 68 614 1521 481 110 84 1072 651 2413 857 538 1333 961 3290 Parts 1474 | . 2 33 3 48 11 . 55 46 7 20 28 36 66 21 13 12 12 175 71 3 5 34 93 20 24 3 54 59 139 43 32 72 52 182 Haulers Intercepted 6 | . . 1 . . . . . . . . . . . . . . . 3 . . . . . . . . . . 2 . . . . . Recyclers Shooed 4 | . . 2 . 1 . . . . . . . . . . . . . . . . . . 1 . . . . . . . . . . . Parts Field Recycled . | . . . . . . . . . . . . . . . . . . . . . . . . . . . . . . . . . . . Retrieved Matter . | . . . . . . . . . . . . . . . . . . . . . . . . . . . . . . . . . . . Parts Self-Destructed 241 | . . . . . . . . 38 6 . . 38 . 22 7 . 32 . . . . . . 20 24 . 54 . . . . . . . Prevented . | . . . . . . . . . . . . . . . . . . . . . . . . . . . . . . . . . . . Kills | -11 -10 -9 -9 -8 -7 -7 -7 -7 -7 -7 -7 -6 -6 -6 -6 -6 -5 -5 -5 -5 -5 -5 -4 -4 -4 -4 -3 -3 -3 -2 -2 -2 -1 -1 ------- Run | Yrd Mat Mat Min Mat Fac Was Fac Low Low Zio Dee Pro Fac Low Low Dat Pro Fac Ext Cet Arc Hub Fac Upp Upp War Pro Res Tes Res Qua Sec Acc Com Combat Hostiles Destroyed 418 | . 1 11 . 16 2 . 21 15 1 2 7 15 19 16 2 4 6 52 21 1 1 9 24 9 4 1 22 11 28 12 4 18 9 54 Melee 377 | . . . . . . . 12 15 1 2 7 15 19 15 2 4 6 52 21 1 1 9 24 9 4 1 22 11 28 12 4 18 9 53 Guns 39 | . 1 11 . 16 2 . 9 . . . . . . . . . . . . . . . . . . . . . . . . . . . AOE 1 | . . . . . . . . . . . . . . . . . . . . . . . . . . . . . . . . . . 1 Classes Destroyed 31 | . 2 4 1 1 1 . 2 2 1 . 1 1 . 1 . . . 2 1 . . 1 2 . . . 1 . 2 . 2 1 . 2 Worker 17 | . . 1 . 1 . . 2 . . . . . 1 . . . . 4 . . . . 2 . . . . 2 . 1 . 1 . 2 Builder 10 | . . . . . . . . . . . . . . . . . . 5 2 . . . 1 . . . . . 1 . 1 . . . Tunneler 2 | . . . . . 1 . 1 . . . . . . . . . . . . . . . . . . . . . . . . . . . Hauler 6 | . . 1 . . . . . . . . . . . . . . . 3 . . . . . . . . . . 2 . . . . . Recycler 9 | . . . 1 . . . 1 . . . . . . . . . . 3 . . . . . . . . . 1 . . 1 . 2 . Minesweeper 1 | . . . . . . . . . . . . . . 1 . . . . . . . . . . . . . . . . . . . . Operator 9 | . . . . . . . . . . . . . . . . . . 1 . . 2 . . . . . . 2 . 1 . . 1 2 Drone 2 | . . . . . . . . . . . . . . . . . . . . . . . . . . . 2 . . . . . . . Watcher 14 | . 1 . . . . . 1 . . . . . 3 . . . . 3 1 . . . . . . . . . 2 . . . . 3 Swarmer 84 | . . 7 . 8 . . 6 4 . . . 2 3 4 . . 4 8 . . . . 4 . . . 3 . 6 4 . 8 . 13 Cutter 2 | . . . . . . . . . . . . . . . . . . . . . . . 2 . . . . . . . . . . . Saboteur 2 | . . . . . . . . . . . . . . . . . . . 1 . . . . . . . . . . . . . . 1 Grunt 121 | . 1 1 . 2 2 . 9 5 . . . 6 8 7 . . . 20 9 . . 5 9 7 . 1 6 5 5 5 . 2 3 3 Brawler 5 | . . . . . . . . 1 . . . . . 2 . . 1 . 1 . . . . . . . . . . . . . . . Duelist 12 | . . . . . . . 1 1 . . . . 1 1 . . 1 1 . . . . . 1 . . 3 . 1 1 . . . . Protector 1 | . . . . . . . . . . . . . . . . . . . . . . 1 . . . . . . . . . . . . Researcher 17 | . . . . . . . . . . . . . . . . . . . . . . . . . . . . . 13 . 1 3 . . Sentry 48 | . . 3 . 4 . . 1 3 . . . 1 2 1 1 . . 4 7 . 1 2 2 1 1 . 2 . 5 . . 3 1 3 Specialist 7 | . . . . . . . . . . . . 3 . . . . . 2 . . . . 2 . . . . . . . . . . . Hunter 38 | . . . . 2 . . 1 1 . . . 2 . . . . . 5 1 . . 1 . . 2 . 6 2 8 . . 2 4 1 Programmer 36 | . . . . . . . 2 . . . . 1 4 . . . . 10 . . . . 3 . . . . 2 . 1 2 . . 11 Heavy 4 | . . . . . . . . . . . . . . . . . . . . . . . 2 . . . . . . . . 1 1 . Q-Series 1 | . . . . . . . . . . . . . . . . . . . . . . . . . . . . . 1 . . . . . Behemoth 9 | . . . . . . . . . 1 . . . 1 1 1 . . . 2 . . . . . 1 . . . . 1 . . . 1 Cetus Guard 1 | . . . . . . . . . . . . . . . . . . . . 1 . . . . . . . . . . . . . . M Guard 2 | . . . . . . . . . . . . . . . . . . . . . . . . . . . . . . . . . . 2 Enhanced Grunt 4 | . . . . . . . . . . . . . . . . 4 . . . . . . . . . . . . . . . . . . Tracker 3 | . . . . . . . . . . . . . . . . . . 1 . . . . . . . . . 1 1 . . . . . Combat Programmer 4 | . . . . . . . . . . . . . . . . . . 1 . . . . . . . . . 1 1 . . . . 1 Striker 2 | . . . . . . . . . . . . . . . . . . . . . . . . . . . . . . . . . . 2 Executioner 4 | . . . . . . . . . . . . . . . . . . . . . . . . . . . . . . . . 2 . 2 Alpha 7 1 | . . . . . . . . . . . . . . . . . . . . . . . . . . . . . . . 1 . . . Fortress 1 | . . . . . . . . . . . . . . . . . . . . . . . . . . . . . . . 1 . . . Z-Light 7 | . . . . . . . . . . . 7 . . . . . . . . . . . . . . . . . . . . . . . Decomposer 6 | . . . . . . . . . . . . . . . 6 . . . . . . . . . . . . . . . . . . . Packrat 3 | . . . . . . . . . . . . . . . 2 . . . . . . . . . . . 1 . . . . . . . Thug 9 | . . . 1 . . . 1 1 . . . . . . . . . . . . . . . . . . . . . . . . . 6 Savage 1 | . . . . . . . . . . . . . . . . . . . . . . . . . . . . . . . . . . 1 Butcher 1 | . . . . . . . . 1 . . . . . . . . . . . . . . . . . . . . . . . . . . Guerrilla 3 | . . . . . . . . . . . . . . . . . . . . . . . . . . . . . . . . . . 3 Wizard 2 | . . . . . . . . . . . . . . . . . . . . . . . . . . . . . . . . . . 2 Fireman 1 | . . . . . . . . . . . . . . . . . . . . . . . . . . . . . . . . . . 1 Mutant 8 | . . . . . . . . 1 . 5 . . . . 1 . . . . . . . . . . . . . . . . . . 1 Best Kill Streak 12 | . 1 10 1 12 3 . 6 3 1 1 3 6 5 4 1 1 4 11 6 1 2 6 6 4 2 1 8 5 6 9 5 7 5 10 Combat Bots Only 12 | . 1 8 . 12 2 . 4 3 1 1 3 6 4 4 1 1 4 5 5 1 1 6 6 4 2 1 8 4 4 8 3 7 5 9 Max Kills in Single Turn 2 | . 1 2 1 2 1 . 2 1 1 1 1 1 1 1 1 1 1 2 1 1 1 1 1 1 1 1 2 2 1 1 1 2 1 2 Gunslinging 1 | . . 1 . . . . 1 . . . . . . . . . . . . . . . . . . . . . . . . . . . Exploded 1 | . . . . . . . . . . . . . . . . . . . . . . . . . . . . . . . . . . 1 Melee 2 | . . . . . . . 1 1 1 1 1 1 1 1 1 1 1 2 1 1 1 1 1 1 1 1 2 2 1 1 1 2 1 2 Uniques/NPCs Destroyed 1 | . . . . . . . . . . 1 . . . . . . . . . . . . . . . . . . . . . . . . Imprinter (-7/Zion) Combat | -11 -10 -9 -9 -8 -7 -7 -7 -7 -7 -7 -7 -6 -6 -6 -6 -6 -5 -5 -5 -5 -5 -5 -4 -4 -4 -4 -3 -3 -3 -2 -2 -2 -1 -1 -------- Run | Yrd Mat Mat Min Mat Fac Was Fac Low Low Zio Dee Pro Fac Low Low Dat Pro Fac Ext Cet Arc Hub Fac Upp Upp War Pro Res Tes Res Qua Sec Acc Com Hostile Shots Fired 2328 | . 6 38 . 61 6 . 140 83 15 6 47 74 84 54 36 15 24 253 76 14 23 31 129 31 31 26 81 41 147 66 53 121 90 426 Missed 764 | . . 9 . 21 2 . 56 25 1 3 17 24 31 23 8 4 8 72 26 7 5 11 45 11 14 7 31 17 47 28 12 39 25 135 Hits 1564 | . 6 29 . 40 4 . 84 58 14 3 30 50 53 31 28 11 16 181 50 7 18 20 84 20 17 19 50 24 100 38 41 82 65 291 Melee 30 | . . . . . . . 5 6 . . . . 1 1 . . 2 . 1 . . . 3 1 . . 1 . 1 2 . . . 6 Projectile 1534 | . 6 29 . 40 4 . 79 52 14 3 30 50 52 30 28 11 14 181 49 7 18 20 81 19 17 19 49 24 99 36 41 82 65 285 AOE 14 | . . . . . . . . . . . . . . . . . . 2 . . . . 1 . . . . . . . . . . 11 Critical Strikes 78 | . . 1 . 5 . . . 5 . . . 2 4 . 1 . . 1 . 1 . . 10 3 . 1 3 3 7 1 3 6 3 18 Actively Blocked 51 | . . . . . . . . . . . . . . . . . . . . . . . 3 3 . 1 3 3 7 1 3 6 3 18 Part Disruptions 6 | . . . . . . . . . . . . 2 . . . . . . . . . . 1 . . . . . . . . . . 3 Damage Taken 19400 | . 68 359 . 516 65 . 1015 634 318 34 671 637 473 276 405 190 142 1953 494 90 303 162 1104 165 161 142 356 220 757 398 640 1135 842 4675 Core 12974 | . 53 290 . 440 50 . 853 525 251 29 576 518 383 213 329 152 112 1336 290 51 187 97 678 119 91 94 231 136 457 211 333 699 438 2752 Absorbed by Shields 10338 | . . . . . . . 204 180 . . . . 279 243 169 191 148 1034 436 93 81 166 818 177 169 146 381 229 790 380 538 829 558 2099 Redirected to Core 10068 | . 43 239 . 267 50 . 518 359 235 15 333 392 281 197 253 132 90 1072 249 29 165 92 476 83 68 63 178 116 408 179 314 592 384 2196 Ignored by Resistances 5956 | . . . . . . . 49 174 88 10 180 147 131 139 159 101 56 633 254 44 104 79 477 87 92 86 197 65 322 167 303 492 384 936 Regen/Repaired (Parts) 3278 | . . . . . . . 17 . . . . . . . . . . 227 142 14 59 42 210 46 48 13 84 17 160 160 256 323 349 1111 Core Remaining (%) 89 | 100 91 . 55 83 . . . . . . . 95 . . . . 100 . . . . 87 . . . . 100 . 100 . . 80 . . Volleys Fired 108 | . 4 27 3 30 4 . 25 . . . . . . 4 . . . . 5 . . . 1 . . . . . . . . . 4 1 Largest 4 | . 3 4 4 4 4 . 4 . . . . . . 1 . . . . 1 . . . 1 . . . . . . . . . 1 1 Hottest 120 | . 120 115 100 100 100 . 100 . . . . . . . . . . . . . . . . . . . . . . . . . . . Shots Fired 383 | . 12 108 12 120 16 . 100 . . . . . . 4 . . . . 5 . . . 1 . . . . . . . . . 4 1 Gun 368 | . 12 108 12 120 16 . 100 . . . . . . . . . . . . . . . . . . . . . . . . . . . Cannon . | . . . . . . . . . . . . . . . . . . . . . . . . . . . . . . . . . . . Launcher 1 | . . . . . . . . . . . . . . . . . . . . . . . . . . . . . . . . . . 1 Special 14 | . . . . . . . . . . . . . . 4 . . . . 5 . . . 1 . . . . . . . . . 4 . Kinetic 354 | . . 106 12 120 16 . 100 . . . . . . . . . . . . . . . . . . . . . . . . . . . Thermal 7 | . 4 2 . . . . . . . . . . . . . . . . . . . . . . . . . . . . . . . 1 Explosive . | . . . . . . . . . . . . . . . . . . . . . . . . . . . . . . . . . . . Electromagnetic 8 | . 8 . . . . . . . . . . . . . . . . . . . . . . . . . . . . . . . . . Robot Hit Streak 9 | . 3 8 4 9 6 . 6 . . . . . . 2 . . . . . . . . . . . . . . . . . . . . Robot Miss Streak 8 | . 2 3 3 6 2 . 8 . . . . . . 2 . . . . . . . . . . . . . . . . . . . . Penetration Max . | . . . . . . . . . . . . . . . . . . . . . . . . . . . . . . . . . . . Secondary Targets 12 | . . 5 . 3 2 . 2 . . . . . . . . . . . . . . . . . . . . . . . . . . . Max Gunslinging Chain 2 | . . 2 . 1 1 . 1 . . . . . . . . . . . . . . . . . . . . . . . . . . . Shots Hit Robots 2055 | . 6 38 6 64 10 . 84 54 9 27 44 53 90 50 38 33 17 212 114 16 15 24 98 40 27 7 74 41 153 62 95 76 78 300 Core Hits 854 | . 3 15 4 27 5 . 37 23 3 8 14 22 36 26 11 16 8 86 37 4 3 15 41 19 11 3 36 25 73 22 28 36 28 129 Critical Kills 2 | . . 1 . . . . 1 . . . . . . . . . . . . . . . . . . . . . . . . . . . Critical Parts Destroyed . | . . . . . . . . . . . . . . . . . . . . . . . . . . . . . . . . . . . Critical Strikes 191 | . . 1 . . . . 6 4 2 4 2 11 7 6 3 8 2 28 11 1 2 2 8 5 1 . 8 3 18 7 9 5 5 22 Destroy 2 | . . 1 . . . . 1 . . . . . . . . . . . . . . . . . . . . . . . . . . . Sever 50 | . . . . . . . 5 4 2 3 2 8 5 5 3 8 2 3 . . . . . . . . . . . . . . . . Impale 139 | . . . . . . . . . . 1 . 3 2 1 . . . 25 11 1 2 2 8 5 1 . 8 3 18 7 9 5 5 22 Melee Attacks 3043 | . . . . . . . 83 86 19 38 75 90 142 70 95 98 35 331 150 16 18 50 158 72 47 10 143 54 282 100 131 129 98 423 Impact . | . . . . . . . . . . . . . . . . . . . . . . . . . . . . . . . . . . . Slashing 833 | . . . . . . . 83 86 19 32 69 79 124 58 91 98 35 59 . . . . . . . . . . . . . . . . Piercing 2209 | . . . . . . . . . . 6 6 11 18 12 4 . . 272 150 16 18 50 158 72 47 10 143 53 282 100 131 129 98 423 Sneak Attacks 127 | . . . . . . . 2 4 2 22 . 1 1 2 9 1 . 24 5 . 2 . 4 . . . 1 7 18 1 7 6 5 3 Combat Hostiles 9 | . . . . . . . . . 2 . . 1 . . . . . 2 . . . . . . . . . . . . 3 . 1 . Follow-up Attacks 977 | . . . . . . . 16 19 3 8 17 24 48 30 17 24 10 108 55 9 8 10 53 21 14 6 42 20 82 32 50 41 41 169 Damage Inflicted 92221 | . 83 668 102 1138 175 . 2196 2005 378 1722 1561 1875 3173 1674 1789 1194 591 9725 5172 700 758 1023 4098 1601 1248 259 3192 2004 7554 2584 4560 3268 2962 21189 Guns 2838 | . 83 668 102 1138 175 . 672 . . . . . . . . . . . . . . . . . . . . . . . . . . . Cannons . | . . . . . . . . . . . . . . . . . . . . . . . . . . . . . . . . . . . Explosions 7929 | . . . . . . . . . . . . . . . . . . . . . . . . . . . . . . . . . . 7929 Melee 81454 | . . . . . . . 1524 2005 378 1722 1561 1875 3173 1674 1789 1194 591 9725 5172 700 758 1023 4098 1601 1248 259 3192 2004 7554 2584 4560 3268 2962 13260 Ramming . | . . . . . . . . . . . . . . . . . . . . . . . . . . . . . . . . . . . Kinetic 2755 | . . 668 102 1138 175 . 672 . . . . . . . . . . . . . . . . . . . . . . . . . . . Thermal 7951 | . 22 . . . . . . . . . . . . . . . . . . . . . . . . . . . . . . . . 7929 Explosive . | . . . . . . . . . . . . . . . . . . . . . . . . . . . . . . . . . . . Electromagnetic 61 | . 61 . . . . . . . . . . . . . . . . . . . . . . . . . . . . . . . . . Impact . | . . . . . . . . . . . . . . . . . . . . . . . . . . . . . . . . . . . Slashing 17848 | . . . . . . . 1524 2005 378 1628 1453 1644 2763 1390 1721 1194 591 1557 . . . . . . . . . . . . . . . . Piercing 63606 | . . . . . . . . . . 94 108 231 410 284 68 . . 8168 5172 700 758 1023 4098 1601 1248 259 3192 2004 7554 2584 4560 3268 2962 13260 Highest Corruption 26 | . . . . . . . 1 1 1 1 . 1 2 2 2 2 3 2 2 3 3 . 2 2 2 2 . 1 2 . 1 1 . 26 Average Corruption 2 | . . . . . . . 1 1 1 1 . 1 1 2 2 2 2 1 2 2 2 . 1 2 2 2 . 1 1 . 1 1 . 8 Corruption Purged 3 | . . . . . . . . . . . . . . . . . . . . . 3 . . . . . . . . . . . . . Corruption Blocked . | . . . . . . . . . . . . . . . . . . . . . . . . . . . . . . . . . . . Effects 161 | . . . . . . . 9 6 4 1 . 2 5 13 17 3 18 2 6 4 4 . 4 8 6 1 . 2 6 . 3 2 . 35 Message Errors 37 | . . . . . . . 2 2 2 1 . 1 1 1 3 . 4 1 2 1 1 . 1 1 1 . . . 1 . . 1 . 10 Matter Fused 45 | . . . . . . . 1 3 . . . . 1 3 7 1 6 . . 3 . . 1 3 2 1 . . 1 . 1 . . 11 Heat Flow Errors 24 | . . . . . . . 1 . 1 . . 1 1 2 3 . 3 . 1 . . . . 1 2 . . 1 . . 1 . . 6 Energy Discharges 24 | . . . . . . . 1 . . . . . 1 4 3 1 2 . 1 . 2 . 1 2 1 . . 1 1 . . . . 3 Parts Rejected 5 | . . . . . . . 2 1 . . . . . . . . . . . . . . 1 . . . . . . . . . . 1 Parts Fused 2 | . . . . . . . . . . . . . . . . . . . . . . . . . . . . . 1 . . 1 . . Data Loss (minor) 14 | . . . . . . . 2 . 1 . . . 1 3 1 . 2 . 1 . 1 . . 1 . . . . . . . . . 1 Data Loss (major) 6 | . . . . . . . . . . . . . . . . . . 1 1 . . . . . . . . . 2 . 1 . . 1 Alerts 2 | . . . . . . . . . . . . . . . . 1 1 . . . . . . . . . . . . . . . . . Misdirections 2 | . . . . . . . . . . . . . . . . . . . . . . . . . . . . . . . . . . 2 Overload Shots . | . . . . . . . . . . . . . . . . . . . . . . . . . . . . . . . . . . . Overflow Damage 5242 | . . . . . . . 63 113 . 148 121 83 84 94 306 21 19 1051 244 46 146 . 199 52 7 11 206 149 476 117 155 200 182 949 Projectiles . | . . . . . . . . . . . . . . . . . . . . . . . . . . . . . . . . . . . Explosions 215 | . . . . . . . . . . . . . . . . . . . . . . . . . . . . . . . . . . 215 Melee 5027 | . . . . . . . 63 113 . 148 121 83 84 94 306 21 19 1051 244 46 146 . 199 52 7 11 206 149 476 117 155 200 182 734 Knockbacks . | . . . . . . . . . . . . . . . . . . . . . . . . . . . . . . . . . . . Impact . | . . . . . . . . . . . . . . . . . . . . . . . . . . . . . . . . . . . Kinetic . | . . . . . . . . . . . . . . . . . . . . . . . . . . . . . . . . . . . Secondary . | . . . . . . . . . . . . . . . . . . . . . . . . . . . . . . . . . . . Self-Inflicted Damage . | . . . . . . . . . . . . . . . . . . . . . . . . . . . . . . . . . . . Shots . | . . . . . . . . . . . . . . . . . . . . . . . . . . . . . . . . . . . Rammed . | . . . . . . . . . . . . . . . . . . . . . . . . . . . . . . . . . . . Targets Rammed . | . . . . . . . . . . . . . . . . . . . . . . . . . . . . . . . . . . . Kicked . | . . . . . . . . . . . . . . . . . . . . . . . . . . . . . . . . . . . Crushed . | . . . . . . . . . . . . . . . . . . . . . . . . . . . . . . . . . . . Highest Temperature 267 | . 134 195 80 206 96 . 244 . 173 1 3 116 209 164 267 . 237 79 263 39 54 23 52 261 180 34 45 192 32 11 219 6 7 252 Average Temperature 44 | . 65 61 38 61 47 . 75 . 91 1 2 43 67 53 106 . 94 29 54 24 21 7 13 55 71 16 10 80 7 3 110 2 4 68 Received Heat Transfer 2621 | . 36 108 . 144 36 . 141 120 60 29 270 147 158 71 54 . 16 294 94 12 48 28 164 34 8 34 38 8 44 49 56 44 92 184 Effects 1 | . . . . . . . . . . . . . . . . . 1 . . . . . . . . . . . . . . . . . Interference 1 | . . . . . . . . . . . . . . . . . 1 . . . . . . . . . . . . . . . . . Siege Activations . | . . . . . . . . . . . . . . . . . . . . . . . . . . . . . . . . . . . Martial Activations . | . . . . . . . . . . . . . . . . . . . . . . . . . . . . . . . . . . . Shielding Activations . | . . . . . . . . . . . . . . . . . . . . . . . . . . . . . . . . . . . Robots Disrupted . | . . . . . . . . . . . . . . . . . . . . . . . . . . . . . . . . . . . Combat Hostiles . | . . . . . . . . . . . . . . . . . . . . . . . . . . . . . . . . . . . Robots Corrupted . | . . . . . . . . . . . . . . . . . . . . . . . . . . . . . . . . . . . Combat Hostiles . | . . . . . . . . . . . . . . . . . . . . . . . . . . . . . . . . . . . Parts Fried . | . . . . . . . . . . . . . . . . . . . . . . . . . . . . . . . . . . . Impact Corruptions . | . . . . . . . . . . . . . . . . . . . . . . . . . . . . . . . . . . . Robots Melted . | . . . . . . . . . . . . . . . . . . . . . . . . . . . . . . . . . . . Combat Hostiles . | . . . . . . . . . . . . . . . . . . . . . . . . . . . . . . . . . . . Parts Melted 1 | . . . . . . . . . . . . . . . . . . . . . . . . . . . . . . 1 . . . . Heat Transferred 365 | . 50 . . . . . . . . . . . . . . . . . . . . . . . . . . . . . . . . 315 Parts Sabotaged 4 | . . . . . . . . . . . . . . . . . . . 3 . . . . . . . . . . . . . . 1 Parts Stolen . | . . . . . . . . . . . . . . . . . . . . . . . . . . . . . . . . . . . Parts Stripped . | . . . . . . . . . . . . . . . . . . . . . . . . . . . . . . . . . . . Power Chain Reactions . | . . . . . . . . . . . . . . . . . . . . . . . . . . . . . . . . . . . Alert | -11 -10 -9 -9 -8 -7 -7 -7 -7 -7 -7 -7 -6 -6 -6 -6 -6 -5 -5 -5 -5 -5 -5 -4 -4 -4 -4 -3 -3 -3 -2 -2 -2 -1 -1 ------- Run | Yrd Mat Mat Min Mat Fac Was Fac Low Low Zio Dee Pro Fac Low Low Dat Pro Fac Ext Cet Arc Hub Fac Upp Upp War Pro Res Tes Res Qua Sec Acc Com Maximum Alert Level 5 | . . 1 . 1 . . 2 . . . . . 1 . . . . 4 3 2 1 1 2 . . . . 3 4 3 2 2 2 5 Low Security (%) 30 | 100 100 84 100 23 100 100 57 . . . . . 98 . . . . 22 . . . 57 32 . . . . . . . . . . . Level 1 20 | . . 15 . 76 . . 34 . . . . . 1 . . . . 11 9 . 99 42 27 . . . . . 5 . . 36 54 20 Level 2 31 | . . . . . . . 7 . . . . . . . . . . 26 71 100 . . 39 . . . . 58 50 21 100 63 45 37 Level 3 12 | . . . . . . . . . . . . . . . . . . 38 18 . . . . . . . . 41 43 78 . . . . Level 4 . | . . . . . . . . . . . . . . . . . . 1 . . . . . . . . . . 1 . . . . . Level 5 . | . . . . . . . . . . . . . . . . . . . . . . . . . . . . . . . . . . 2 High Security 4 | . . . . . . . . . . . . . . . . . . . . . . . . . . . . . . . . . . 38 Max Security . | . . . . . . . . . . . . . . . . . . . . . . . . . . . . . . . . . . . Peak Influence 2800 | . 85 213 78 366 161 37 441 . . . . . 212 . . . . 1104 799 568 346 343 584 . . . . 736 1131 854 603 686 450 2800 Initial 636 | . . 35 78 8 161 37 4 . . . . . 77 . . . . 56 532 410 165 75 163 . . . . 630 363 636 480 298 408 233 Average 489 | . 14 91 53 236 132 25 178 . . . . . 133 . . . . 559 574 492 276 173 337 . . . . 673 696 789 555 483 396 1253 Influence Increases 15683 | . 127 274 5 466 46 . 916 415 30 . . 330 563 460 50 . 433 1604 1034 174 211 665 680 215 110 20 525 766 1190 338 221 589 277 2949 Destroy 0b10 Robot/C 8800 | . 20 220 . 320 40 . 420 300 20 . . 300 380 320 40 . 380 1080 540 80 80 320 480 180 80 20 400 220 820 240 100 420 180 800 Destroy 0b10 Robot/NC 400 | . 5 10 5 5 5 . 25 5 . . . . 20 5 . . . 95 20 . 15 10 15 . 10 . 10 25 25 10 10 5 15 50 Destroy Leader 1472 | . 12 42 . 80 . . 82 20 10 . . 30 106 30 10 . 20 252 64 . . 90 100 20 20 . 40 50 98 30 20 70 40 136 Allied During Kill 566 | . . . . . . . . . . . . . . . . . 33 . 358 80 95 . . . . . . . . . . . . . Successful Hack 209 | . . . . . . . 29 . . . . . 33 . . . . 14 8 6 . 5 25 . . . . . 59 4 4 22 . . Select Force Hacks 100 | . . . . . . . . . . . . . . . . . . . . . . 100 . . . . . . . . . . . . Disable Machine 285 | . . . . 45 . . 15 . . . . . 15 . . . . . . . 15 15 15 . . . . . 60 . 30 15 15 45 Destroy Structure 2126 | . . 2 . 1 1 . 15 . . . . . 9 . . . . 58 14 8 6 20 30 . . . . 6 68 24 27 42 12 1783 Advance Influence 450 | . . . . . . . . . . . . . . . . . . . . . . . . . . . . 450 . . . . . . Partial Spotted 150 | . 15 . . . . . . . . . . . . . . . . 15 . . . . . . . . . 15 30 30 15 . 15 15 Lose Combat Pursuer 1125 | . 75 . . 15 . . 330 90 . . . . . 105 . . . 90 30 . . 105 15 15 . . 75 . 30 . 15 15 . 120 Influence Decreases 12883 | . 42 156 185 133 295 100 570 481 245 72 . 206 545 403 249 . 343 606 1388 494 409 546 434 510 357 39 278 387 705 615 544 439 593 514 Entered New Map 4537 | . . 50 125 15 195 70 3 131 55 72 . . 47 53 38 . . 34 556 324 249 141 172 216 55 39 20 87 283 495 374 233 273 132 Time Decay 7111 | . 42 106 60 118 90 30 417 350 190 . . 206 498 350 211 . 343 542 302 170 160 70 262 294 302 . 258 150 422 120 170 206 310 362 Search Patrol Dispatched 300 | . . . . . . . 150 . . . . . . . . . . . . . . . . . . . . 150 . . . . . . Lost Part 50 | . . . . . 10 . . . . . . . . . . . . 10 . . . . . . . . . . . . . . 10 20 Lost Ally 435 | . . . . . . . . . . . . . . . . . . 20 80 . . 335 . . . . . . . . . . . . Purge Threat 450 | . . . . . . . . . . . . . . . . . . . 450 . . . . . . . . . . . . . . . Squads Dispatched 103 | . 2 . . 1 1 . 10 . . . . . 6 . . . . 18 4 . . 7 7 . . . 1 5 12 3 1 3 4 18 Investigation 28 | . 1 . . 1 1 . 7 . . . . . 2 . . . . 5 3 . . 5 1 . . . . . 1 . . . 1 . Extermination 19 | . . . . . . . 3 . . . . . 4 . . . . 3 . . . . 1 . . . . 1 2 1 1 . 1 2 Reinforcement 22 | . 1 . . . . . . . . . . . . . . . . 5 . . . . 4 . . . . 2 3 1 . 3 2 1 Assault 26 | . . . . . . . . . . . . . . . . . . 2 1 . . 2 1 . . . 1 . 3 1 . . . 15 Garrison 2 | . . . . . . . . . . . . . . . . . . 1 . . . . . . . . . . 1 . . . . . Intercept 6 | . . . . . . . . . . . . . . . . . . 2 . . . . . . . . . 2 2 . . . . . Searches Triggered 2 | . . . . . . . 1 . . . . . . . . . . . . . . . . . . . . 1 . . . . . . Construction Impeded . | . . . . . . . . . . . . . . . . . . . . . . . . . . . . . . . . . . . Haulers Reinforced . | . . . . . . . . . . . . . . . . . . . . . . . . . . . . . . . . . . . Active Scanning Responses . | . . . . . . . . . . . . . . . . . . . . . . . . . . . . . . . . . . . Cargo Convoy Interrupts . | . . . . . . . . . . . . . . . . . . . . . . . . . . . . . . . . . . . Stealth | -11 -10 -9 -9 -8 -7 -7 -7 -7 -7 -7 -7 -6 -6 -6 -6 -6 -5 -5 -5 -5 -5 -5 -4 -4 -4 -4 -3 -3 -3 -2 -2 -2 -1 -1 --------- Run | Yrd Mat Mat Min Mat Fac Was Fac Low Low Zio Dee Pro Fac Low Low Dat Pro Fac Ext Cet Arc Hub Fac Upp Upp War Pro Res Tes Res Qua Sec Acc Com Distress Signals 17 | . . . . 1 . . 1 . . . . . . . . . . 3 2 1 . 1 . . . . . . 2 1 . 2 . 3 Communications Jammed . | . . . . . . . . . . . . . . . . . . . . . . . . . . . . . . . . . . . Distress Signals . | . . . . . . . . . . . . . . . . . . . . . . . . . . . . . . . . . . . Times Spotted 643 | . 4 12 . 21 4 6 47 21 1 7 8 19 24 21 2 4 16 68 30 5 3 28 26 10 4 5 29 16 36 17 5 31 14 99 Peak Tracking Total 18 | . 6 10 . 6 2 6 5 8 1 5 5 6 4 6 1 2 4 6 6 5 3 18 8 4 2 5 7 4 5 8 1 9 4 14 Tactical Retreats 47 | . 2 . . 1 . . 12 2 . 1 . . . 5 . . . 4 2 . . 3 1 1 . . 3 . 1 . 1 1 . 7 Traps | -11 -10 -9 -9 -8 -7 -7 -7 -7 -7 -7 -7 -6 -6 -6 -6 -6 -5 -5 -5 -5 -5 -5 -4 -4 -4 -4 -3 -3 -3 -2 -2 -2 -1 -1 ------- Run | Yrd Mat Mat Min Mat Fac Was Fac Low Low Zio Dee Pro Fac Low Low Dat Pro Fac Ext Cet Arc Hub Fac Upp Upp War Pro Res Tes Res Qua Sec Acc Com Traps Triggered 14 | . 2 . . . 1 . 4 . . . . . 3 . . . . . 1 . . . . . . . . . 3 . . . . . Indirectly . | . . . . . . . . . . . . . . . . . . . . . . . . . . . . . . . . . . . Trap Hack Attempts . | . . . . . . . . . . . . . . . . . . . . . . . . . . . . . . . . . . . Triggered . | . . . . . . . . . . . . . . . . . . . . . . . . . . . . . . . . . . . Disarmed . | . . . . . . . . . . . . . . . . . . . . . . . . . . . . . . . . . . . Reprogrammed . | . . . . . . . . . . . . . . . . . . . . . . . . . . . . . . . . . . . Reused . | . . . . . . . . . . . . . . . . . . . . . . . . . . . . . . . . . . . Traps Extracted . | . . . . . . . . . . . . . . . . . . . . . . . . . . . . . . . . . . . Installed 12 | . . . . . . . . . . . . . . 12 . . . . . . . . . . . . . . . . . . . . Triggered . | . . . . . . . . . . . . . . . . . . . . . . . . . . . . . . . . . . . Machines | -11 -10 -9 -9 -8 -7 -7 -7 -7 -7 -7 -7 -6 -6 -6 -6 -6 -5 -5 -5 -5 -5 -5 -4 -4 -4 -4 -3 -3 -3 -2 -2 -2 -1 -1 ---------- Run | Yrd Mat Mat Min Mat Fac Was Fac Low Low Zio Dee Pro Fac Low Low Dat Pro Fac Ext Cet Arc Hub Fac Upp Upp War Pro Res Tes Res Qua Sec Acc Com Machines Disabled 24 | . . . 1 3 . . 1 . . . . 1 1 . . . . . 1 1 1 1 1 . . . 1 . 4 . 2 1 1 3 Max in Single Turn 2 | . . . 1 1 . . 1 . . . . 1 1 . . . . . . . . 1 1 . . . 1 . 1 . 1 1 1 2 Garrison Access 6 | . . . . . . . . . . . . . . . . . . 2 . . . 2 . . . . . . 1 . 1 . . . Network Hub 2 | . . . . . . . . . . . . . . . . . . . . . . 2 . . . . . . . . . . . . Energy Cycler 1 | . . . . . . . . . . . . . . . . . . . . . . . . . . . . . . . . . 1 . Machines Repaired . | . . . . . . . . . . . . . . . . . . . . . . . . . . . . . . . . . . . Machines Dismantled . | . . . . . . . . . . . . . . . . . . . . . . . . . . . . . . . . . . . Machines Sabotaged 2 | . . . . . . . . . . . . . . . . . . . . . . 2 . . . . . . . . . . . . Overloaded Fab Kills . | . . . . . . . . . . . . . . . . . . . . . . . . . . . . . . . . . . . Hacking | -11 -10 -9 -9 -8 -7 -7 -7 -7 -7 -7 -7 -6 -6 -6 -6 -6 -5 -5 -5 -5 -5 -5 -4 -4 -4 -4 -3 -3 -3 -2 -2 -2 -1 -1 --------- Run | Yrd Mat Mat Min Mat Fac Was Fac Low Low Zio Dee Pro Fac Low Low Dat Pro Fac Ext Cet Arc Hub Fac Upp Upp War Pro Res Tes Res Qua Sec Acc Com Machines Accessed 68 | . . . 1 3 1 . 6 . . . . . 6 . 1 4 . 10 7 1 . 6 2 . . 1 . 2 8 1 2 3 2 1 Terminals 40 | . . . . 3 . . 2 . . . . . 3 . . . . 3 7 1 . 5 1 . . . . 2 6 1 1 3 1 1 Fabricators 13 | . . . . . . . 2 . . . . . 3 . . . . 5 . . . . 1 . . . . . 1 . . . 1 . Repair Stations 2 | . . . . . . . 2 . . . . . . . . . . . . . . . . . . . . . . . . . . . Recycling Units . | . . . . . . . . . . . . . . . . . . . . . . . . . . . . . . . . . . . Scanalyzers . | . . . . . . . . . . . . . . . . . . . . . . . . . . . . . . . . . . . Garrison Access 6 | . . . . . 1 . . . . . . . . . . . . 2 . . . 1 . . . . . . 1 . 1 . . . Total Hacks 179 | . . . 1 12 3 . 18 . . . . . 13 . 1 30 . 22 19 2 . 11 12 . . 1 . 2 18 2 3 5 3 1 Successful 110 | . . . 1 3 . . 10 . . . . . 10 . 1 30 . 15 7 1 . 7 5 . . 1 . 2 9 1 2 3 1 1 Failed 67 | . . . . 9 3 . 8 . . . . . 2 . . . . 7 12 1 . 4 6 . . . . . 9 1 1 2 2 . Catastrophic 2 | . . . . . . . . . . . . . . . . . . . 1 . . . . . . . . . . . . 1 . . Database Lockouts 2 | . . . . . . . . . . . . . 1 . . . . . . . . . 1 . . . . . . . . . . . Manual 81 | . . . . 12 . . 12 . . 4 . 1 7 . . . . 6 . 1 . 8 6 . . 1 . 1 10 . . 2 10 . Terminals 99 | . . . . 12 . . 10 . . . . . 6 . . . . 5 19 2 . 10 7 . . . . 2 14 2 2 5 2 1 Fabricators 34 | . . . . . . . 6 . . . . . 7 . . . . 13 . . . . 5 . . . . . 2 . . . 1 . Repair Stations 2 | . . . . . . . 2 . . . . . . . . . . . . . . . . . . . . . . . . . . . Recycling Units . | . . . . . . . . . . . . . . . . . . . . . . . . . . . . . . . . . . . Scanalyzers . | . . . . . . . . . . . . . . . . . . . . . . . . . . . . . . . . . . . Garrison Access 11 | . . . . . 3 . . . . . . . . . . . . 4 . . . 1 . . . . . . 2 . 1 . . . Terminal Hacks 73 | . . . 1 3 . . 4 . . . . . 3 . 1 30 . 3 7 1 . 1 3 . . 1 . 2 6 1 1 3 1 1 Record 11 | . . . . . . . . . . . . . . . . 11 . . . . . . . . . . . . . . . . . . Part Schematic 23 | . . . . 3 . . 1 . . . . . 1 . . 13 . 1 . . . . 2 . . . . . 2 . . . . . Robot Schematic 3 | . . . . . . . . . . . . . . . . 3 . . . . . . . . . . . . . . . . . . Prototype ID Bank 3 | . . . . . . . . . . . . . . . . 3 . . . . . . . . . . . . . . . . . . Open Door 15 | . . . 1 . . . . . . . . . . . 1 . . 1 4 1 . . . . . 1 . . 1 1 1 2 1 . Open DSF 1 | . . . . . . . . . . . . . . . . . . . . . . . . . . . . 1 . . . . . . Level Access Points 2 | . . . . . . . . . . . . . . . . . . . . . . 1 . . . . . . . . . 1 . . Branch Access Points 4 | . . . . . . . 1 . . . . . 1 . . . . . . . . . 1 . . . . 1 . . . . . . Terminal Index 1 | . . . . . . . 1 . . . . . . . . . . . . . . . . . . . . . . . . . . . Fabricator Index 2 | . . . . . . . 1 . . . . . 1 . . . . . . . . . . . . . . . . . . . . . Unreport Threat 3 | . . . . . . . . . . . . . . . . . . . 3 . . . . . . . . . . . . . . . Recall Reinforcements 1 | . . . . . . . . . . . . . . . . . . 1 . . . . . . . . . . . . . . . . Zone Layout 3 | . . . . . . . . . . . . . . . . . . . . . . . . . . . . . 3 . . . . . Disengage Seal 1 | . . . . . . . . . . . . . . . . . . . . . . . . . . . . . . . . . . 1 Fabricator Hacks 22 | . . . . . . . 4 . . . . . 5 . . . . 9 . . . . 2 . . . . . 2 . . . . . Load Schematic 11 | . . . . . . . 2 . . . . . 2 . . . . 5 . . . . 1 . . . . . 1 . . . . . Build 11 | . . . . . . . 2 . . . . . 3 . . . . 4 . . . . 1 . . . . . 1 . . . . . Repair Station Hacks . | . . . . . . . . . . . . . . . . . . . . . . . . . . . . . . . . . . . Recycling Unit Hacks . | . . . . . . . . . . . . . . . . . . . . . . . . . . . . . . . . . . . Scanalyzer . | . . . . . . . . . . . . . . . . . . . . . . . . . . . . . . . . . . . Garrison Access Hacks 5 | . . . . . . . . . . . . . . . . . . 2 . . . 1 . . . . . . 1 . 1 . . . Seal Access 5 | . . . . . . . . . . . . . . . . . . 2 . . . 1 . . . . . . 1 . 1 . . . Unauthorized Hacks 10 | . . . . . . . 2 . . . . . 2 . . . . 1 . . . 5 . . . . . . . . . . . . Terminals 6 | . . . . . . . . . . . . . 1 . . . . . . . . 5 . . . . . . . . . . . . Botnet 1 | . . . . . . . . . . . . . 1 . . . . . . . . . . . . . . . . . . . . . Sabotage 5 | . . . . . . . . . . . . . . . . . . . . . . 5 . . . . . . . . . . . . Fabricators 2 | . . . . . . . . . . . . . 1 . . . . 1 . . . . . . . . . . . . . . . . Prioritize 2 | . . . . . . . . . . . . . 1 . . . . 1 . . . . . . . . . . . . . . . . Repair Stations 2 | . . . . . . . 2 . . . . . . . . . . . . . . . . . . . . . . . . . . . Patch 2 | . . . . . . . 2 . . . . . . . . . . . . . . . . . . . . . . . . . . . Recycling Units . | . . . . . . . . . . . . . . . . . . . . . . . . . . . . . . . . . . . Scanalyzers . | . . . . . . . . . . . . . . . . . . . . . . . . . . . . . . . . . . . Garrison Access . | . . . . . . . . . . . . . . . . . . . . . . . . . . . . . . . . . . . Data Cores Recovered 2 | . . . . . . . . . . . . . . . . . . 1 . . . . . . . . . . . 1 . . . . Used . | . . . . . . . . . . . . . . . . . . . . . . . . . . . . . . . . . . . Hacking Detections 29 | . . . . 3 1 . 4 . . . . . 3 . . . . 7 3 1 . 2 1 . . . . . 3 . . . 1 . Full Trace Events 20 | . . . . 2 1 . 4 . . . . . 2 . . . . 5 3 . . . 1 . . . . . 1 . . . 1 . Feedback Events 1 | . . . . . . . 1 . . . . . . . . . . . . . . . . . . . . . . . . . . . Corruption 1 | . . . . . . . 1 . . . . . . . . . . . . . . . . . . . . . . . . . . . Feedback Blocked . | . . . . . . . . . . . . . . . . . . . . . . . . . . . . . . . . . . . Robot Schematics Acquired 15 | . . . . . . . . . . 3 . . . . . 3 . . . . . . . . . . . . 9 . . . . . Robots Built . | . . . . . . . . . . . . . . . . . . . . . . . . . . . . . . . . . . . Authchips . | . . . . . . . . . . . . . . . . . . . . . . . . . . . . . . . . . . . Time . | . . . . . . . . . . . . . . . . . . . . . . . . . . . . . . . . . . . Total Robot Build Rating . | . . . . . . . . . . . . . . . . . . . . . . . . . . . . . . . . . . . Part Schematics Acquired 74 | . . . . 3 . . 1 . . 15 . . 1 . . 13 . 1 . . . . 2 . . . . . 29 . 2 7 . . Parts Built 19 | . . . . . . . 4 . . . . . 6 . . . . 5 . . . . 2 . . . . . 2 . . . . . Authchips . | . . . . . . . . . . . . . . . . . . . . . . . . . . . . . . . . . . . Time 604 | . . . . . . . 78 . . . . . 122 . . . . 345 . . . . 39 . . . . . 20 . . . . . Total Part Build Rating 91 | . . . . . . . 14 . . . . . 30 . . . . 29 . . . . 14 . . . . . 4 . . . . . Parts Repaired . | . . . . . . . . . . . . . . . . . . . . . . . . . . . . . . . . . . . Time . | . . . . . . . . . . . . . . . . . . . . . . . . . . . . . . . . . . . Parts Recycled . | . . . . . . . . . . . . . . . . . . . . . . . . . . . . . . . . . . . Recycled Matter . | . . . . . . . . . . . . . . . . . . . . . . . . . . . . . . . . . . . Retrieved Matter . | . . . . . . . . . . . . . . . . . . . . . . . . . . . . . . . . . . . Retrieved Components . | . . . . . . . . . . . . . . . . . . . . . . . . . . . . . . . . . . . Parts Scanalyzed . | . . . . . . . . . . . . . . . . . . . . . . . . . . . . . . . . . . . Part Schematics Acquired . | . . . . . . . . . . . . . . . . . . . . . . . . . . . . . . . . . . . Parts Damaged . | . . . . . . . . . . . . . . . . . . . . . . . . . . . . . . . . . . . Bothacking | -11 -10 -9 -9 -8 -7 -7 -7 -7 -7 -7 -7 -6 -6 -6 -6 -6 -5 -5 -5 -5 -5 -5 -4 -4 -4 -4 -3 -3 -3 -2 -2 -2 -1 -1 ------------ Run | Yrd Mat Mat Min Mat Fac Was Fac Low Low Zio Dee Pro Fac Low Low Dat Pro Fac Ext Cet Arc Hub Fac Upp Upp War Pro Res Tes Res Qua Sec Acc Com Used RIF Installer . | . . . . . . . . . . . . . . . . . . . . . . . . . . . . . . . . . . . Robots Hacked 1 | . . . . . . . . . . . . . . . . . . . . . . . . . . . . 1 . . . . . . Non-combat . | . . . . . . . . . . . . . . . . . . . . . . . . . . . . . . . . . . . Combat 1 | . . . . . . . . . . . . . . . . . . . . . . . . . . . . 1 . . . . . . Robot Hacks Applied 1 | . . . . . . . . . . . . . . . . . . . . . . . . . . . . 1 . . . . . . parse_system 1 | . . . . . . . . . . . . . . . . . . . . . . . . . . . . 1 . . . . . . Relay Couplers Released 1 | . . . . . . . . . . . . . . . . . . 1 . . . . . . . . . . . . . . . . Machine Destruction 1 | . . . . . . . . . . . . . . . . . . 1 . . . . . . . . . . . . . . . . Fabnet Peak Effective % . | . . . . . . . . . . . . . . . . . . . . . . . . . . . . . . . . . . . Robots Rewired 11 | . . . . . . . . . . . . . . . . . . . 11 . . . . . . . . . . . . . . . Allies Hacked . | . . . . . . . . . . . . . . . . . . . . . . . . . . . . . . . . . . . Hacks Repelled . | . . . . . . . . . . . . . . . . . . . . . . . . . . . . . . . . . . . Allies | -11 -10 -9 -9 -8 -7 -7 -7 -7 -7 -7 -7 -6 -6 -6 -6 -6 -5 -5 -5 -5 -5 -5 -4 -4 -4 -4 -3 -3 -3 -2 -2 -2 -1 -1 -------- Run | Yrd Mat Mat Min Mat Fac Was Fac Low Low Zio Dee Pro Fac Low Low Dat Pro Fac Ext Cet Arc Hub Fac Upp Upp War Pro Res Tes Res Qua Sec Acc Com Total Allies 29 | . . . . . . . . . . 4 . . . . . 1 . . 19 5 . . . . . . . . . . . . . . Largest Group 19 | . . . . . . . . . . 4 . . . . . 1 1 1 15 19 19 18 . . . . . . . . . . . . Highest-Rated Group 1012 | . . . . . . . . . . 153 . . . . . 99 99 96 563 1012 1012 852 . . . . . . . . . . . . Highest-Rated Ally 159 | . . . . . . . . . . 40 . . . . . 99 99 96 159 159 153 96 . . . . . . . . . . . . Total Orders . | . . . . . . . . . . . . . . . . . . . . . . . . . . . . . . . . . . . Ally Attacks 183 | . . . . . . . . . . . . . . . . . 25 5 59 22 18 54 . . . . . . . . . . . . Total Damage 6511 | . . . . . . . . . . . . . . . . . 1601 283 1654 334 763 1876 . . . . . . . . . . . . Kills 38 | . . . . . . . . . . . . . . . . . 13 2 7 3 4 9 . . . . . . . . . . . . Allies Corrupted 7 | . . . . . . . . . . . . . . . . . . . 1 . . 6 . . . . . . . . . . . . Allies Melted . | . . . . . . . . . . . . . . . . . . . . . . . . . . . . . . . . . . . Intel | -11 -10 -9 -9 -8 -7 -7 -7 -7 -7 -7 -7 -6 -6 -6 -6 -6 -5 -5 -5 -5 -5 -5 -4 -4 -4 -4 -3 -3 -3 -2 -2 -2 -1 -1 ------- Run | Yrd Mat Mat Min Mat Fac Was Fac Low Low Zio Dee Pro Fac Low Low Dat Pro Fac Ext Cet Arc Hub Fac Upp Upp War Pro Res Tes Res Qua Sec Acc Com Active Infowar (turns) . | . . . . . . . . . . . . . . . . . . . . . . . . . . . . . . . . . . . Robot Analysis Total 151 | . . . . . . . . . . . . . . . . 151 . . . . . . . . . . . . . . . . . . Derelict Logs Recovered 18 | . . . 1 . . . . 1 . 2 . 3 . 3 2 . 2 . . . . . . 3 1 . . . . . . . . . Drone Launches . | . . . . . . . . . . . . . . . . . . . . . . . . . . . . . . . . . . . Drone Recoveries . | . . . . . . . . . . . . . . . . . . . . . . . . . . . . . . . . . . . Exploration | -11 -10 -9 -9 -8 -7 -7 -7 -7 -7 -7 -7 -6 -6 -6 -6 -6 -5 -5 -5 -5 -5 -5 -4 -4 -4 -4 -3 -3 -3 -2 -2 -2 -1 -1 ------------- Run | Yrd Mat Mat Min Mat Fac Was Fac Low Low Zio Dee Pro Fac Low Low Dat Pro Fac Ext Cet Arc Hub Fac Upp Upp War Pro Res Tes Res Qua Sec Acc Com Turns Passed 20408 | 41 155 248 122 251 186 62 1395 795 391 517 375 523 1332 781 1272 423 869 1557 676 350 329 153 573 641 671 166 1119 305 1028 256 358 427 696 1365 Spaces Moved 23706 | 73 272 270 200 250 297 119 1715 1147 714 895 539 783 1116 1299 1843 235 1036 1133 605 103 98 233 557 1075 1222 334 1225 364 1092 294 423 557 318 1270 Core 424 | 73 272 79 . . . . . . . . . . . . . . . . . . . . . . . . . . . . . . . . Treads . | . . . . . . . . . . . . . . . . . . . . . . . . . . . . . . . . . . . Legs . | . . . . . . . . . . . . . . . . . . . . . . . . . . . . . . . . . . . Wheels . | . . . . . . . . . . . . . . . . . . . . . . . . . . . . . . . . . . . Hover 23282 | . . 191 200 250 297 119 1715 1147 714 895 539 783 1116 1299 1843 235 1036 1133 605 103 98 233 557 1075 1222 334 1225 364 1092 294 423 557 318 1270 Flight . | . . . . . . . . . . . . . . . . . . . . . . . . . . . . . . . . . . . Fastest Speed 43 | 50 50 50 56 56 51 51 51 51 51 51 45 48 48 48 48 48 48 43 43 43 43 43 43 48 48 48 48 48 44 44 44 44 46 46 Average Speed 49 | 50 50 55 56 56 55 51 51 51 51 51 49 48 48 48 48 48 48 54 43 43 43 43 47 48 48 48 48 49 48 44 44 45 55 59 Slowest Speed 128 | 50 50 100 56 56 120 51 51 51 51 111 51 48 48 48 48 48 48 126 118 43 43 43 48 48 48 48 48 118 122 44 113 46 112 128 Overloaded Moves . | . . . . . . . . . . . . . . . . . . . . . . . . . . . . . . . . . . . Propulsion Burnouts . | . . . . . . . . . . . . . . . . . . . . . . . . . . . . . . . . . . . Robots Hopped 1 | . . . . . . . . . . . . . . . . . . . 1 . . . . . . . . . . . . . . . Potential Cave-ins 16 | . . . . . . . . . . . . . . . . . . 3 . . . . . . . . . . 8 5 . . . . Cave-ins Triggered . | . . . . . . . . . . . . . . . . . . . . . . . . . . . . . . . . . . . Exploration Rate (%) 56 | 4 57 26 60 31 11 79 30 98 72 88 68 93 28 98 98 81 97 29 69 59 73 26 11 98 98 55 99 11 81 16 47 39 7 38 Regions Visited 34 Branch Regions 22 Pre-discovered Areas 34 | . . . . . . . . . . 1 . 1 . . 2 30 . . . . . . . . . . . . . . . . . . Known Exits Taken 9 | . . . . . . . 1 . . . . 1 1 . . . 1 . . . . 1 1 . . . . 1 . 1 . 1 . . Unknown Exits Taken 23 | 1 1 1 1 1 . . . 1 1 1 1 . . 1 1 1 . 1 1 1 1 . . 1 1 1 1 . 1 . 1 . 1 . Scrap Searched 31 | . . . 2 . . . . 1 2 3 . 3 . 3 5 . 4 . . . . . . 3 1 . 4 . . . . . . . Spaces Dug 269 | . . . . . . . 13 5 4 . 1 5 8 1 22 3 1 30 6 . . 8 17 8 8 . 25 3 44 11 10 15 3 18 Terrain Destroyed 1104 | . . . . . . . 13 5 4 . 1 5 8 1 22 3 1 30 6 . . 8 17 8 8 . 25 3 44 11 10 15 3 853 Melee 269 | . . . . . . . 13 5 4 . 1 5 8 1 22 3 1 30 6 . . 8 17 8 8 . 25 3 44 11 10 15 3 18 Projectile . | . . . . . . . . . . . . . . . . . . . . . . . . . . . . . . . . . . . AOE 835 | . . . . . . . . . . . . . . . . . . . . . . . . . . . . . . . . . . 835 Terrain Rammed . | . . . . . . . . . . . . . . . . . . . . . . . . . . . . . . . . . . . Walls Destroyed . | . . . . . . . . . . . . . . . . . . . . . . . . . . . . . . . . . . . Machines Disabled . | . . . . . . . . . . . . . . . . . . . . . . . . . . . . . . . . . . . Actions | -11 -10 -9 -9 -8 -7 -7 -7 -7 -7 -7 -7 -6 -6 -6 -6 -6 -5 -5 -5 -5 -5 -5 -4 -4 -4 -4 -3 -3 -3 -2 -2 -2 -1 -1 --------- Run | Yrd Mat Mat Min Mat Fac Was Fac Low Low Zio Dee Pro Fac Low Low Dat Pro Fac Ext Cet Arc Hub Fac Upp Upp War Pro Res Tes Res Qua Sec Acc Com Total 31327 | 75 279 320 204 310 311 119 2115 1322 733 947 637 916 1896 1450 2185 499 1408 1982 970 404 379 272 825 1180 1298 337 1721 474 1524 393 559 701 807 1775 Wait 4829 | . 1 5 2 2 6 1 243 61 . 1 4 39 662 72 263 199 336 570 181 290 258 16 108 54 34 . 401 67 202 36 47 44 408 216 Move 23671 | 72 271 269 199 249 297 118 1714 1146 713 894 538 782 1115 1298 1842 234 1035 1132 602 102 97 232 556 1074 1221 333 1224 363 1091 293 422 556 317 1270 Hop 1 | . . . . . . . . . . . . . . . . . . . 1 . . . . . . . . . . . . . . . Pick Up 89 | . . . . . . . . 4 1 3 2 4 3 5 3 1 4 8 6 . 1 . 9 3 3 . 3 2 12 1 3 4 . 4 Fast Attach 102 | 3 3 8 . . 1 . 10 3 . 8 6 . 4 . 3 2 . 10 7 . 2 . 5 . 1 . . . 16 . 3 . 2 5 Attach 26 | . . . . . . . . . . . 1 . 1 3 . 1 . . 8 . . . 4 . . . . 1 1 . 1 1 1 3 Detach 13 | . . . . . . . . . . . 1 . . 2 . . . . 8 . . . 1 . . . . . . . . . 1 . Swap 16 | . . 1 . 1 2 . 1 . . . . . 2 . . . . . . . . . 2 . 2 . . 2 1 . . 2 . . Drop 143 | . . 5 . 1 1 . 5 3 1 8 5 3 4 5 7 2 2 17 7 . 3 . 12 2 6 . 3 1 24 1 6 3 2 4 Fire 108 | . 4 27 3 30 4 . 25 . . . . . . 4 . . . . 5 . . . 1 . . . . . . . . . 4 1 Melee 1544 | . . . . . . . 64 61 13 23 51 58 78 31 48 45 18 159 73 7 7 24 78 35 21 4 68 26 134 50 62 63 46 197 Ram . | . . . . . . . . . . . . . . . . . . . . . . . . . . . . . . . . . . . Kick . | . . . . . . . . . . . . . . . . . . . . . . . . . . . . . . . . . . . Crush . | . . . . . . . . . . . . . . . . . . . . . . . . . . . . . . . . . . . Escape Stasis 33 | . . . . . . . 13 . . . . . 3 . . . . . 13 . . . . . . . . . . . . . . 4 Rewire 21 | . . . . . . . . . . . . . . . 1 . . . 20 . . . . . . . . . . . . . . . Trap 12 | . . . . . . . . . . . . . . 12 . . . . . . . . . . . . . . . . . . . . Miscellaneous 719 | . . 5 . 27 . . 40 44 5 10 29 30 24 18 18 15 13 86 39 5 11 . 49 12 10 . 22 12 43 12 15 28 26 71 Route ------- -11/Scrapyard -10/Materials (discovered 2 exits: [*Mat x2]) -9/Materials -9/Mines -8/Materials -7/Factory -7/Waste -7/Factory (discovered 5 exits: *Fac x2 / Sto / *Low x2) -7/Lower Caves -7/Lower Caves (discovered 2 exits: *Fac / *Zio) -7/Zion (discovered 2 exits: [*Dee] / [*Pro]) -7/Deep Caves -6/Proximity Caves -6/Factory (discovered 5 exits: Fac x3 / *Low x2) -6/Lower Caves -6/Lower Caves (discovered 2 exits: *Fac / *Dat) -6/Data Miner -5/Proximity Caves -5/Factory (discovered 5 exits: *Fac x2 / *Upp x2 / *Ext) -5/Extension (discovered 2 exits: *Fac / *Cet) -5/Cetus -5/Archives (discovered 2 exits: *Fac / *Hub) -5/Hub_04(d) (discovered 4 exits: *Fac x4) -4/Factory (discovered 2 exits: *Upp x2) -4/Upper Caves -4/Upper Caves (discovered 2 exits: *Res / *War) -4/Warlord -3/Proximity Caves -3/Research (discovered 3 exits: *Arm / *Tes x2) -3/Testing -2/Research -2/Quarantine (discovered 2 exits: *Sec / [*Frg]) -2/Section 7 -1/Access -1/Command History --------- Turn | Location | Event 4 | -11/Scrapyard | Discovered new exit (range 16) 22 | -11/Scrapyard | Upgraded with Propulsion slot (x1) 22 | -11/Scrapyard | Upgraded with Weapon slot (x3) 42 | -11/Scrapyard | Entered Materials 110 | -10/Materials | Discovered new exit (range 15) 151 | -10/Materials | Discovered new exit (range 16) 197 | -10/Materials | Entered another Materials area 199 | -9/Materials | Reached level 2 363 | -9/Materials | Destroyed 8 combat bots 442 | -9/Materials | Discovered new exit (range 6) 445 | -9/Materials | Entered Mines 447 | -9/Mines | Reached level 3 493 | -9/Mines | Found the Drone Emporium 530 | -9/Mines | Learned Materials emergency access door positions 562 | -9/Mines | Discovered new exit (range 10) 567 | -9/Mines | Entered Materials 569 | -8/Materials | Reached level 4 595 | -8/Materials | Core integrity fell below 50% 625 | -8/Materials | Reached level 5 693 | -8/Materials | Destroyed 12 combat bots 740 | -8/Materials | Build established: Hacker-Gunner 772 | -8/Materials | Discovered new exit (range 10) 818 | -8/Materials | Entered Factory 820 | -7/Factory | Reached level 6 1004 | -7/Factory | Sucked down chute 1004 | -7/Factory | Entered Waste 1006 | -7/Waste | Reached level 7 1014 | -7/Waste | Spotted C-40 Crusher 1016 | -7/Waste | Spotted C-40 Crusher 1017 | -7/Waste | Spotted C-40 Crusher 1022 | -7/Waste | Spotted C-40 Crusher 1028 | -7/Waste | Spotted C-40 Crusher 1036 | -7/Waste | Spotted C-40 Crusher 1051 | -7/Waste | Discovered new exit (range 11) 1066 | -7/Waste | Entered Factory 1137 | -7/Factory | Discovered new exit (range 16) 1183 | -7/Factory | Allied Derelicts emerged from ambush trap array 1247 | -7/Factory | Discovered new exit (range 10) 1555 | -7/Factory | Discovered new exit (range 16) 1665 | -7/Factory | Fabricated Katana? 1716 | -7/Factory | Reached level 8 1959 | -7/Factory | Build established: Hacker-Gladiator 2051 | -7/Factory | Upgraded with Utility slot (x2) 2214 | -7/Factory | Fabricated Microactuators? 2266 | -7/Factory | Search patrols dispatched 2448 | -7/Factory | Identified exit to Storage 2448 | -7/Factory | Identified exit to Lower Caves 2461 | -7/Factory | Entered Lower Caves 2463 | -7/Lower Caves | Reached level 9 2649 | -7/Lower Caves | Attracted the attention of an 0b10 checkpoint 2674 | -7/Lower Caves | Attracted the attention of an 0b10 outpost 2907 | -7/Lower Caves | Reached level 10 2941 | -7/Lower Caves | Learned 12 Factory zone layouts 3181 | -7/Lower Caves | Encountered a Warlord checkpoint 3218 | -7/Lower Caves | Murdered 3 allies 3230 | -7/Lower Caves | Discovered new exit (range 10) 3256 | -7/Lower Caves | Entered another Lower Caves area 3369 | -7/Lower Caves | Discovered new exit (range 16) 3376 | -7/Lower Caves | Spotted B-75 Beast 3394 | -7/Lower Caves | Destroyed B-75 Beast 3560 | -7/Lower Caves | Discovered new exit (range 13) 3647 | -7/Lower Caves | Entered Zion 3672 | -7/Zion | Learned location of 1 exit from Factory 3682 | -7/Zion | Discovered new exit (range 14) 3684 | -7/Zion | Given the Hacking Drone Bay 3739 | -7/Zion | System corruption cleaned by Quarantine Array 3793 | -7/Zion | Found Prototype Energy Gun 3793 | -7/Zion | Identified Storm Laser 4000 | -7/Zion | Learned location of Recycling (-7) 4056 | -7/Zion | Met Imprinter 4056 | -7/Zion | Reached level 11 4064 | -7/Zion | Imprinted 4066 | -7/Zion | Declared Zion's savior 4108 | -7/Zion | Attacked by Zionites 4111 | -7/Zion | Destroyed Imprinter 4113 | -7/Zion | Extracted access codes from Imprinter's data core 4129 | -7/Zion | Murdered 4 allies 4156 | -7/Zion | Opened final containment barrier to the Deep Caves 4163 | -7/Zion | Discovered new exit (range 3) 4163 | -7/Zion | Saw the warning signs outside the Deep Caves entrance 4164 | -7/Zion | Entered Deep Caves 4296 | -7/Deep Caves | Z-Facility disabled 4315 | -7/Deep Caves | Upgraded with Propulsion slot (x1) 4379 | -7/Deep Caves | Upgraded with Propulsion slot (x1) 4416 | -7/Deep Caves | Core integrity fell below 50% 4530 | -7/Deep Caves | Discovered new exit (range 11) 4539 | -7/Deep Caves | Entered Proximity Caves 4541 | -6/Proximity Caves | Reached level 12 4565 | -6/Proximity Caves | Acquired the password to a Derelict Tinkerer's latest research 4567 | -6/Proximity Caves | Found Prototype Special Weapon 4672 | -6/Proximity Caves | Caught by Unaware searching for contraband prototypes 4674 | -6/Proximity Caves | Caught by Unaware searching for contraband prototypes 4703 | -6/Proximity Caves | Reached level 13 4846 | -6/Proximity Caves | Identified exit to Factory 4926 | -6/Proximity Caves | Found DCF Scrap (12 items) 4928 | -6/Proximity Caves | Learned Factory emergency access door positions 5062 | -6/Proximity Caves | Entered Factory 5063 | -6/Factory | Identified exit to Factory 5064 | -6/Factory | Reached level 14 5157 | -6/Factory | Reached level 15 5175 | -6/Factory | Upgraded with Utility slot (x1) 5226 | -6/Factory | Fabricated Force Field? 5302 | -6/Factory | Upgraded with Utility slot (x2) 5347 | -6/Factory | Fabricated Actuator Array? 5444 | -6/Factory | Central database locked down 5444 | -6/Factory | Identified exit to Lower Caves 5647 | -6/Factory | Fabricated Adv. Actuator Array? 5708 | -6/Factory | Spotted B-75 Beast 5723 | -6/Factory | Destroyed B-75 Beast 6256 | -6/Factory | Reached level 16 6260 | -6/Factory | Upgraded with Utility slot (x1) 6394 | -6/Factory | Entered Lower Caves 6416 | -6/Lower Caves | Spotted B-75 Beast 6427 | -6/Lower Caves | Identified Molecular Deconstructor 6470 | -6/Lower Caves | Destroyed B-75 Beast 6673 | -6/Lower Caves | Reached level 17 6701 | -6/Lower Caves | Learned Factory stockpile data 6766 | -6/Lower Caves | Encountered a Warlord checkpoint 6775 | -6/Lower Caves | Learned Factory stockpile data 6787 | -6/Lower Caves | Learned Factory interactive machine intel 6791 | -6/Lower Caves | Attracted the attention of an 0b10 outpost 6878 | -6/Lower Caves | Discovered new exit (range 7) 7175 | -6/Lower Caves | Entered another Lower Caves area 7195 | -6/Lower Caves | Discovered exit to Factory (range 11) 7230 | -6/Lower Caves | Found Prototype Device 7230 | -6/Lower Caves | Identified Heart of Steel 7239 | -6/Lower Caves | Murdered Warlord Statue 7417 | -6/Lower Caves | Spotted B-75 Beast 7444 | -6/Lower Caves | Core integrity fell below 50% 7449 | -6/Lower Caves | Destroyed B-75 Beast 7573 | -6/Lower Caves | Encountered a Warlord checkpoint 7608 | -6/Lower Caves | Discovered new exit (range 15) 7749 | -6/Lower Caves | Attracted the attention of an 0b10 checkpoint 8447 | -6/Lower Caves | Entered Data Miner 8447 | -6/Data Miner | Discovered new exit (range 6) 8449 | -6/Data Miner | Reached level 18 8457 | -6/Data Miner | Met Data Miner 8467 | -6/Data Miner | Learned location of Section 7 (-2) 8467 | -6/Data Miner | Acquired the access code to Warlord's prototype stash 8476 | -6/Data Miner | Received God Mode back door access code from Data Miner 8483 | -6/Data Miner | Interfaced with the Data Conduit 8697 | -6/Data Miner | Heart of Steel transformed into Warbot 8870 | -6/Data Miner | Entered Proximity Caves 8870 | -5/Proximity Caves | Accompanied by 1 ally (Warbot) 8872 | -5/Proximity Caves | Reached level 19 8929 | -5/Proximity Caves | Learned Factory terminal intel 8950 | -5/Proximity Caves | Spotted B-75 Beast 9160 | -5/Proximity Caves | Reached level 20 9582 | -5/Proximity Caves | Learned location of 1 exit from Factory 9656 | -5/Proximity Caves | Discovered exit to Factory (range 5) 9660 | -5/Proximity Caves | Ambushed by research squad 9739 | -5/Proximity Caves | Entered Factory 9739 | -5/Factory | Accompanied by 1 ally (Warbot) 9740 | -5/Factory | Identified exit to Upper Caves 9741 | -5/Factory | Reached level 21 9742 | -5/Factory | Loaded intel: 289 machine locations 9743 | -5/Factory | Loaded intel: 56 interactive machine locations 9744 | -5/Factory | Loaded intel: 28 terminal locations 10025 | -5/Factory | Fabricated Force Lance? 10067 | -5/Factory | Discovered new exit (range 14) 10214 | -5/Factory | Upgraded with Utility slot (x2) 10264 | -5/Factory | Reached level 22 10317 | -5/Factory | Fabricated Lgt. Regenerative Plating? 10442 | -5/Factory | Discovered new exit (range 4) 10486 | -5/Factory | Upgraded with Utility slot (x1) 10760 | -5/Factory | Discovered exit to Upper Caves (range 12) 10847 | -5/Factory | Fabricated Lgt. Regenerative Plating? 10902 | -5/Factory | Garrison activated, responded to threat 11022 | -5/Factory | Fabricated Lgt. Regenerative Plating? 11091 | -5/Factory | Intercept squad dispatched 11110 | -5/Factory | Spotted Tracker 11126 | -5/Factory | Core integrity fell below 50% 11131 | -5/Factory | Destroyed Tracker 11141 | -5/Factory | Spotted Combat Programmer 11148 | -5/Factory | Reached level 23 11148 | -5/Factory | Destroyed Combat Programmer 11169 | -5/Factory | Build established: Machinist-Gladiator 11239 | -5/Factory | First assault squad dispatched 11294 | -5/Factory | Discovered new exit (range 6) 11296 | -5/Factory | Entered Extension 11297 | -5/Extension | Loaded intel: 34 machine locations 11500 | -5/Extension | Rescued a captive Derelict 11583 | -5/Extension | Rescued A7 11588 | -5/Extension | Spotted B-75 Beast 11596 | -5/Extension | First assault squad dispatched 11605 | -5/Extension | Spotted B-75 Beast 11616 | -5/Extension | Destroyed B-75 Beast 11630 | -5/Extension | Destroyed B-75 Beast 11745 | -5/Extension | Rescued a captive Derelict 11745 | -5/Extension | Rescued a captive Derelict 11762 | -5/Extension | Rescued a captive Derelict 11763 | -5/Extension | Rescued a captive Derelict 11771 | -5/Extension | Rescued a captive Derelict 11772 | -5/Extension | Rescued a captive Derelict 11848 | -5/Extension | Rescued a captive Derelict 11903 | -5/Extension | Discovered new exit (range 10) 11903 | -5/Extension | Discovered new exit (range 6) 11972 | -5/Extension | Entered Cetus 11972 | -5/Cetus | Accompanied by 14 allies (A7) 11973 | -5/Cetus | Loaded intel: 24 machine locations 11974 | -5/Cetus | Reached level 24 11977 | -5/Cetus | Acquired a Cetus Manufacturing Module code from A7 11979 | -5/Cetus | Spotted Cetus Guard 11979 | -5/Cetus | Spotted Cetus Guard 11980 | -5/Cetus | Spotted Cetus Guard 11982 | -5/Cetus | Allies destroyed Cetus Guard 11982 | -5/Cetus | Spotted Cetus Guard 11986 | -5/Cetus | Allies destroyed Cetus Guard 11988 | -5/Cetus | Allies destroyed Cetus Guard 11993 | -5/Cetus | Destroyed Cetus Guard 12017 | -5/Cetus | Escorted A7 to Cetus Mainframe 12036 | -5/Cetus | Started Cetus Manufacturing Module 12061 | -5/Cetus | Manufactured an Enhanced Grunt 12086 | -5/Cetus | Manufactured an Enhanced Grunt 12111 | -5/Cetus | Manufactured an Enhanced Grunt 12136 | -5/Cetus | Manufactured an Enhanced Grunt 12161 | -5/Cetus | Manufactured an Enhanced Grunt 12210 | -5/Cetus | Discovered new exit (range 15) 12322 | -5/Cetus | Entered Archives 12322 | -5/Archives | Accompanied by 19 allies (A7) 12323 | -5/Archives | Loaded intel: 8 machine locations 12327 | -5/Archives | Received a hacking code to weaken MAIN.C 12345 | -5/Archives | Discovered new exit (range 13) 12385 | -5/Archives | Build established: Commander-Gladiator 12519 | -5/Archives | Discovered new exit (range 16) 12651 | -5/Archives | Entered Hub_04(d) 12651 | -5/Hub_04(d) | Accompanied by 18 allies 12652 | -5/Hub_04(d) | Loaded intel: 64 machine locations 12658 | -5/Hub_04(d) | Network Hub disabled 12663 | -5/Hub_04(d) | Spotted Lightning 12673 | -5/Hub_04(d) | Spotted Lightning 12676 | -5/Hub_04(d) | Identified exit to Factory 12714 | -5/Hub_04(d) | Lost 5 allies 12764 | -5/Hub_04(d) | Spotted Lightning 12784 | -5/Hub_04(d) | Network Hub disabled 12804 | -5/Hub_04(d) | Entered Factory 12806 | -4/Factory | Loaded intel: 288 machine locations 12806 | -4/Factory | Reached level 25 12993 | -4/Factory | Build established: Machinist-Gladiator 13002 | -4/Factory | Central database locked down 13002 | -4/Factory | Identified exit to Upper Caves 13262 | -4/Factory | Fabricated Nanoactuators? 13304 | -4/Factory | First assault squad dispatched 13377 | -4/Factory | Entered Upper Caves 13379 | -4/Upper Caves | Reached level 26 13399 | -4/Upper Caves | Attracted the attention of an 0b10 checkpoint 13592 | -4/Upper Caves | Learned Research garrison access intel 13710 | -4/Upper Caves | Discovered new exit (range 7) 14018 | -4/Upper Caves | Entered another Upper Caves area 14021 | -4/Upper Caves | Discovered new exit (range 11) 14086 | -4/Upper Caves | Attracted the attention of an 0b10 checkpoint 14354 | -4/Upper Caves | Learned Research stockpile data 14389 | -4/Upper Caves | Spotted B-86 Titan 14422 | -4/Upper Caves | Destroyed B-86 Titan 14583 | -4/Upper Caves | Found DCF Scrap (15 items) 14621 | -4/Upper Caves | Discovered new exit (range 6) 14689 | -4/Upper Caves | Entered Warlord 14717 | -4/Warlord | System corruption cleaned by Quarantine Array 14748 | -4/Warlord | Visited the Vortex Lab 14769 | -4/Warlord | Warlord's base attacked by MAIN.C 14787 | -4/Warlord | Rebuked by Warlord 14805 | -4/Warlord | Opened Warlord's prototype stash 14851 | -4/Warlord | Discovered new exit (range 8) 14855 | -4/Warlord | Entered Proximity Caves 14857 | -3/Proximity Caves | Reached level 27 15344 | -3/Proximity Caves | Spotter reported a threat 15397 | -3/Proximity Caves | Attracted the attention of an 0b10 checkpoint 15401 | -3/Proximity Caves | Spotter reported a threat 15423 | -3/Proximity Caves | Spotter reported a threat 15504 | -3/Proximity Caves | Attracted the attention of an 0b10 outpost 15577 | -3/Proximity Caves | Destroyed 8 combat bots 15858 | -3/Proximity Caves | Discovered new exit (range 5) 15974 | -3/Proximity Caves | Entered Research 15976 | -3/Research | Loaded intel: 132 machine locations 15976 | -3/Research | Reached level 28 15977 | -3/Research | Loaded intel: 4 garrison access locations 15988 | -3/Research | Upgraded with Utility slot (x1) 16155 | -3/Research | Discovered new exit (range 8) 16164 | -3/Research | Identified exit to Armory 16164 | -3/Research | Identified exit to Testing 16170 | -3/Research | Intercept squad dispatched 16188 | -3/Research | Spotted Tracker 16192 | -3/Research | Destroyed Tracker 16224 | -3/Research | Search patrols dispatched 16236 | -3/Research | Spotted Combat Programmer 16243 | -3/Research | Destroyed Combat Programmer 16279 | -3/Research | Entered Testing 16280 | -3/Testing | Loaded intel: 65 machine locations 16281 | -3/Testing | Reached level 29 16344 | -3/Testing | Scanned by Researcher 16359 | -3/Testing | Spotted Striker 16360 | -3/Testing | Spotted Striker 16385 | -3/Testing | Garrison activated, responded to threat 16773 | -3/Testing | Found Prototype Protection 16773 | -3/Testing | Identified SHELL Armor 16775 | -3/Testing | Upgraded with Propulsion slot (x1) 16833 | -3/Testing | Intercept squad dispatched 16842 | -3/Testing | Spotted Tracker 16845 | -3/Testing | Destroyed Tracker 16861 | -3/Testing | Spotted Combat Programmer 16872 | -3/Testing | Destroyed Combat Programmer 17029 | -3/Testing | First assault squad dispatched 17050 | -3/Testing | Fabricated Weight Redist. System? 17287 | -3/Testing | Discovered new exit (range 8) 17307 | -3/Testing | Entered Research 17308 | -2/Research | Identified exit to Quarantine 17309 | -2/Research | Loaded intel: 119 machine locations 17309 | -2/Research | Reached level 30 17347 | -2/Research | Spotted B-90 Cyclops 17348 | -2/Research | Build established: Hacker-Gladiator 17361 | -2/Research | Reached level 31 17402 | -2/Research | Destroyed 8 combat bots 17405 | -2/Research | Destroyed B-90 Cyclops 17557 | -2/Research | First assault squad dispatched 17563 | -2/Research | Entered Quarantine 17564 | -2/Quarantine | Loaded intel: 78 machine locations 17592 | -2/Quarantine | Spotted Alpha 7 17599 | -2/Quarantine | Found Alien Launcher 17612 | -2/Quarantine | Destroyed Alpha 7 17700 | -2/Quarantine | Found Alien Artifact 17703 | -2/Quarantine | Identified Subatomic Replicator 17703 | -2/Quarantine | Used Subatomic Replicator to replicate Zio. Glidesys I 17738 | -2/Quarantine | Spotted Fortress 17878 | -2/Quarantine | Destroyed Fortress 17919 | -2/Quarantine | Discovered new exit (range 5) 17919 | -2/Quarantine | Discovered new exit (range 6) 17921 | -2/Quarantine | Entered Section 7 17922 | -2/Section 7 | Loaded intel: 129 machine locations 17923 | -2/Section 7 | Reached level 32 17936 | -2/Section 7 | Upgraded with Weapon slot (x1) 18150 | -2/Section 7 | Spotted B-90 Cyclops 18208 | -2/Section 7 | Destroyed 7 combat bots 18211 | -2/Section 7 | Spotted Executioner 18211 | -2/Section 7 | Spotted Executioner 18223 | -2/Section 7 | Destroyed Executioner 18227 | -2/Section 7 | Destroyed Executioner 18255 | -2/Section 7 | Found Alien Artifact 18337 | -2/Section 7 | Identified exit to Access 18348 | -2/Section 7 | Entered Access 18349 | -1/Access | Loaded intel: 129 machine locations 18350 | -1/Access | Reached level 33 18406 | -1/Access | Energy Cycler disabled 18874 | -1/Access | Discovered new exit (range 10) 19044 | -1/Access | Entered Command 19045 | -1/Command | Loaded intel: 64 machine locations 19046 | -1/Command | Reached level 34 19169 | -1/Command | Reached level 35 19356 | -1/Command | Destroyed 9 combat bots 19421 | -1/Command | Disengaged cave seal 19421 | -1/Command | Wild derelicts emerged from the dark tunnel 19567 | -1/Command | Wild derelicts emerged from the dark tunnel 19741 | -1/Command | Spotted B-99 Colossus 19794 | -1/Command | First assault squad dispatched 19804 | -1/Command | Destroyed B-99 Colossus 19836 | -1/Command | Identified Sigix Terminator 19847 | -1/Command | Fired Sigix Terminator 19847 | -1/Command | Destroyed Combat Programmer 19847 | -1/Command | Reached level 36 19858 | -1/Command | Spotted Combat Programmer 19866 | -1/Command | Spotted M Guard 19866 | -1/Command | Spotted M Guard 19882 | -1/Command | High security lockdown imminent 19925 | -1/Command | Destroyed M Guard 19933 | -1/Command | Core integrity fell below 50% 19937 | -1/Command | Destroyed M Guard 19942 | -1/Command | System corruption reached 10% 19962 | -1/Command | High security lockdown engaged 20269 | -1/Command | Spotted Striker 20269 | -1/Command | Spotted Executioner 20270 | -1/Command | Spotted Executioner 20299 | -1/Command | Destroyed Striker 20315 | -1/Command | Destroyed Executioner 20336 | -1/Command | Destroyed Executioner 20363 | -1/Command | Spotted Striker 20363 | -1/Command | Spotted Executioner 20393 | -1/Command | Core integrity fell below 20% 20403 | -1/Command | Destroyed Striker 20409 | -1/Command | Destroyed by G-73 Enforcer with Phase Gun Last Messages --------------- E-15 Imp destroyed. Acquired Nanoactuators. Zio. Glidesys I destroyed. Slug penetrates Wall. Kinetic Spear follow-up attack on Striker. P-80 Master resets G-73 Enforcer, system corruption cleaned. Kinetic Spear follow-up attack on Striker. M-36 Artificer repairs G-73 Enforcer. Kinetic Spear follow-up attack on Striker. Striker destroyed. Penetrated by Slug. Slug penetrates Earth. Penetrated by Slug. Upgraded: Core Integrity (+100) Kinetic Spear follow-up attack on G-73 Enforcer. W-44 Eye sends out distress signal. C-30 ARC bursts open, deploying its payload. G-73 Enforcer unfolds itself. M-36 Artificer unfolds itself. M-36 Artificer repairs R-10 Processor. Map ----- +----------------------------------------------------+ | ? ????????## # ### # | | " ?????????# ### | | " ????????# ## #%% ### | | " ????????### ### ## ## ## | | " ????????## # # ### "" #? | | " #??????#### "%" "" +? | | " """"" """##?#### ## ## " "Y #? | | " " " " ### # # # "" ###? | | """ """ # % # # # # "" #??? | | #??? | | #??? | | ??? | | " %% #######?? | | "%" = #???????? | | """ """ *%! ####%###/## ######???????? | | " " " " ### * #?# % # #??########### | | " """"" ""### # # ## # #??# | | " ??#### # ### # #??# | | " #?????######?#% # #??# | | " ?????????????# # #??# | | ? #?????????????# # #??# ! | | ? ??????????????# # #??# * | | ?? ???????????????# # #### "" " | | ???? ???????????????# % # + "" | | ????????????????###########+###;#+##############+# | | ????????????????# g;@g%g w w #???# # | | ????????????????# ip!## gg #???#!# | | ????????????????# ==## m "" "" #???#=# | | ????????????????# !%## """" """" #???#*# | | ????????????????# /## R"""" """" #???#%# | | ????????????????# ## "" "" #???#%# | | ????????????????# ## #??[!%# | | ????????????????# % ## % #?##### | | ????????????????####+########+###+##########?????? | | ?????????????????# "%##### ## #??????????????? | | ?????????????????#! " ## #??????????????? | | ?????????????????# ## #??????????????? | | ?????????????????# !!!##### " ## #??????????????? | | ?????????????????##!%#######/#### ??????????????? | | ??????????????????#=!## % ###??????????????? | | ??????????????????#=!## ""#??????????????? | | ??????????????????# [##=! ""#??????????????? | | ?????????????????##[[##%%! = = T"#??????????????? | | ?????????????????#!%!=#=!! ""#??????????????? | | ????????????????#%[!*!%%|* ""#??????????????" | | ????????????????## !!%"%[[ !* ###?????????????"" | | ?????????????????# |!%#!!! * #???????????????"" | | ?????????????????## ############????????????????" | | ??????????????????# #???????????????????????????? | | ??????????????????# #???????????????????????????? | +----------------------------------------------------+ Best States ------------- Heat Dissipation 55 Energy Generation 57 Energy Capacity 800 Matter Stores 300 Matter Capacity 300 Sight Range 16 Terrain Scan Density 10 Additional Mass Support 6 EM Shielding 3 Armor Coverage 900 Resistance: KI 20 Resistance: TH 20 Melee Speed Boost 50 Evasion (%) 56 Offensive Hacking 30 Item Schematics ----------------- Katana | -8/Materials | Hacked Shield Generator | -8/Materials | Hacked Actuator Array | -8/Materials | Hacked Microactuators | -7/Factory | Hacked Imp. Cooling System | -7/Zion | Archive Imp. Trap Scanner | -7/Zion | Archive Hvy. Machine Gun | -7/Zion | Archive Xenon Bombardment Thruster | -7/Zion | Archive Magnetic Acceleration Cannon | -7/Zion | Archive Greatsword | -7/Zion | Archive Remote Force Field | -7/Zion | Archive Imp. Recalibrator | -7/Zion | Archive Gravmag System | -7/Zion | Archive Proton Cannon | -7/Zion | Archive Hvy. Ion Cannon | -7/Zion | Archive Plasma Rifle | -7/Zion | Archive Tiamat Missile Launcher | -7/Zion | Archive Imp. Cryofiber Web | -7/Zion | Archive Component Analysis Suite | -7/Zion | Archive Force Field | -6/Factory | Hacked Combat Drone Bay | -6/Data Miner | Free Lgt. Regenerative Plating | -6/Data Miner | Free Enh. Flexi-carbon Leg | -6/Data Miner | Free Imp. Energy Well | -6/Data Miner | Free Cld. Plasma Rifle | -6/Data Miner | Free Imp. Linear Gravjet | -6/Data Miner | Free Adv. Hardlight Generator | -6/Data Miner | Free Force Lance | -6/Data Miner | Free Imp. Remote Datajack | -6/Data Miner | Free Lrn. Sensor Array | -6/Data Miner | Free Adv. Corruption Screen | -6/Data Miner | Free Mic. Antimatter Reactor | -6/Data Miner | Free Imp. Remote Force Field | -6/Data Miner | Free Power Sword | -5/Factory | Hacked Nanoactuators | -4/Factory | Hacked Dynamic Insulation System | -4/Factory | Hacked Exp. Hacking Suite | -3/Testing | Archive Exp. Myomer Leg | -3/Testing | Archive Prc. Matter Filter | -3/Testing | Archive Cld. Phase Gun | -3/Testing | Archive Neutron Missile Launcher | -3/Testing | Archive Imp. Matter Neutralizer | -3/Testing | Archive Cld. Field Propulsion Drive | -3/Testing | Archive Exp. Cesium-ion Thruster | -3/Testing | Archive Imp. KE Penetrator | -3/Testing | Archive Exp. Flexi-carbon Leg | -3/Testing | Archive Adv. Variable Charge Gun | -3/Testing | Archive Exp. Thermal Defense Suite | -3/Testing | Archive Prc. Phase Gun | -3/Testing | Archive Exp. Thermal Shield | -3/Testing | Archive Mni. Fusion Reactor | -3/Testing | Archive Hvy. Tesla Rifle | -3/Testing | Archive Med. Regenerative Plating | -3/Testing | Hacked Weight Redist. System | -3/Testing | Hacked Neutron Cannon | -3/Testing | Archive Lrn. Phase Cannon | -3/Testing | Archive Adv. Energy Well | -3/Testing | Archive Quantum Shading Machine | -3/Testing | Archive Exp. Energy Well | -3/Testing | Archive Adv. Gravity Neutralizer | -3/Testing | Archive Exp. Thermal Generator | -3/Testing | Archive Exp. Cooling System | -3/Testing | Archive Exp. Power Amplifier | -3/Testing | Archive Exp. Shield Generator | -3/Testing | Archive Helical Railgun | -3/Testing | Archive Com. Mass Driver | -2/Quarantine | Archive Exp. Biometal Medium Treads | -2/Quarantine | Archive Com. Particle Reactor | -2/Section 7 | Archive Exp. Core Analyzer | -2/Section 7 | Archive Adv. Plasma Rifle | -2/Section 7 | Archive Exp. Gyrokinetic Inverter | -2/Section 7 | Archive Cld. Linear Gravjet | -2/Section 7 | Archive Point Singularity Launcher | -2/Section 7 | Archive Adv. Remote Shield | -2/Section 7 | Archive Robot Schematics ------------------ K-01 Serf | -7/Zion | Archive L-41 Fighter | -7/Zion | Archive O-24 Administrator | -7/Zion | Archive B-60 Warrior | -6/Data Miner | Free H-66 Slayer | -6/Data Miner | Free Y-64 Sentinel | -6/Data Miner | Free M-36 Artificer | -3/Testing | Archive A-02 Transporter | -3/Testing | Archive E-15 Imp | -3/Testing | Archive Y-72 Warden | -3/Testing | Archive O-32 Director | -3/Testing | Archive B-74 Champion | -3/Testing | Archive R-10 Processor | -3/Testing | Archive S-43 Plague | -3/Testing | Archive C-55 Analyst | -3/Testing | Archive Fabricated ------------ Katana | x2 | -7/Factory Microactuators | x2 | -7/Factory Force Field | x2 | -6/Factory Actuator Array | x2 | -6/Factory Adv. Actuator Array | x2 | -6/Factory | Preloaded Force Lance | x2 | -5/Factory Lgt. Regenerative Plating | x1 | -5/Factory Lgt. Regenerative Plating | x1 | -5/Factory Lgt. Regenerative Plating | x1 | -5/Factory Nanoactuators | x2 | -4/Factory Weight Redist. System | x2 | -3/Testing Repaired ---------- Nothing Alien Tech Used ----------------- Subatomic Replicator Sigix Terminator Achievements -------------- None Challenges ------------ None RPGLIKE | -11 -10 -9 -9 -8 -7 -7 -7 -7 -7 -7 -7 -6 -6 -6 -6 -6 -5 -5 -5 -5 -5 -5 -4 -4 -4 -4 -3 -3 -3 -2 -2 -2 -1 -1 --------- Run | Yrd Mat Mat Min Mat Fac Was Fac Low Low Zio Dee Pro Fac Low Low Dat Pro Fac Ext Cet Arc Hub Fac Upp Upp War Pro Res Tes Res Qua Sec Acc Com Levels Raised 35 | . . 1 1 2 1 1 1 2 . 1 . 2 3 1 . 1 2 3 . 1 . . 1 1 . . 1 1 1 2 . 1 1 3 XP Earned 56441 | 3000 150 2800 500 3725 1700 200 2654 2100 650 800 1000 2650 4120 1877 521 1155 2854 3687 1343 315 230 609 1765 399 232 272 1751 1546 1858 1937 791 1292 1983 3975 XP Spent 55305 | 3000 . 1320 800 2200 . . 4900 250 . 1750 1900 2250 7050 . . . . 9820 . . 1050 . 1300 1500 1100 . . 3310 1400 1495 1550 1400 . 5960 Upgrades 77 | 5 . 5 1 2 . . 10 1 . 4 2 2 6 . . . . 11 . . 1 . 1 1 1 . . 2 1 13 1 1 . 6 Propulsion Slot 4 | 1 . . . . . . . . . . 2 . . . . . . . . . . . . . . . . . 1 . . . . . Utility Slot 10 | . . . . . . . 2 . . . . . 4 . . . . 3 . . . . . . . . . 1 . . . . . . Weapon Slot 4 | 3 . . . . . . . . . . . . . . . . . . . . . . . . . . . . . . . 1 . . Core Integrity 18 | . . . . . . . . . . . . . . . . . . 3 . . . . . . . . . . . 13 . . . 2 Heat Dissipation 5 | . . 2 . . . . . . . . . . . . . . . 1 . . . . . . . . . 1 . . . . . 1 Energy Generation 6 | . . . . . . . . . . . . . 2 . . . . 1 . . 1 . 1 . . . . . . . 1 . . . Energy Storage 2 | . . . . . . . . . . . . . . . . . . 2 . . . . . . . . . . . . . . . . Mass Support 5 | 1 . . . . . . . . . . . . . . . . . 1 . . . . . . 1 . . . . . . . . 2 Inventory Capacity 7 | . . . . . . . . 1 . 2 . 2 . . . . . . . . . . . 1 . . . . . . . . . 1 Melee Accuracy 2 | . . . . . . . . . . 2 . . . . . . . . . . . . . . . . . . . . . . . . Hack Attack % 6 | . . 3 1 2 . . . . . . . . . . . . . . . . . . . . . . . . . . . . . . KI Resistance % 4 | . . . . . . . 4 . . . . . . . . . . . . . . . . . . . . . . . . . . . TH Resistance % 4 | . . . . . . . 4 . . . . . . . . . . . . . . . . . . . . . . . . . . . Protomatter Created 8501 | . . 71 . 213 . . 349 464 . 266 124 450 147 212 . 171 98 1097 508 66 85 99 279 247 292 . 540 388 678 153 80 234 258 932 Integrity Restored 13908 | . . 82 . 609 . . 889 874 120 218 629 618 458 297 376 254 142 1535 680 80 244 . 930 197 113 . 401 170 771 229 288 587 579 1538 Core 11459 | . . 74 . 609 . . 824 704 120 152 584 493 378 224 346 154 112 1296 327 54 187 . 759 135 91 . 325 111 482 211 271 493 579 1364 Parts 2449 | . . 8 . . . . 65 170 . 66 45 125 80 73 30 100 30 239 353 26 57 . 171 62 22 . 76 59 289 18 17 94 . 174 Protomatter Decayed 3394 | . . 27 . . . . 73 110 . . . 182 11 37 . 44 112 513 331 28 . 324 51 60 235 . 271 178 316 80 46 16 . 349 Game ------ Seed NetworkedRegenerativeArchive Manual? 0 Play Time 03:43:54 Cumulative 290.7 hours Start 2025.06.12 @ 16:37:53 End 2025.06.12 @ 23:21:41 Sessions 3 Manual Loads 0 Difficulty Rogue Special Mode Winter2019/RPGLIKE Game No. 283 Rogue 94 Adventurer 177 Explorer 12 Win Type - Total 65 Types 19/1/16/2/12/0/4/5/0/6 Lore% 57 Gallery% 55 Achievement% 72 Wizard Run 0 Options --------- Layout 0 ASCII 0 Keyboard 0 Movement Numpad Keybinds 0 Fullscreen 2 Font 12/Smallcaps Map View 83x54 Zoom Use 0% Tactical HUD 0 Map Filters NONE Filters NONE Steam 1 RUN: 0126f6fd-d926-4328-b083-e3c88c477f97